Workbook

Sheet Display
P1: ="C.US.CLE"&Symbols!I2 -> C.US.CLE?1 | Q1: ="P.US.CLE"&Symbols!I2 -> P.US.CLE?1
E2: CQG Crude Oil (Globex) User Defined Options Spreads (UDS) Market Quotes | Q2: =RTD("cqg.rtd", ,"SystemInfo", "Linetime") -> 42972.54541
C4: Until an order for a spread is sent and accepted by an exchange for trading, the market data shown on the DOM ladder is synthetic. If the UDS has been defined by someone else and the spread is trading, then the market data shown is actual, not synthetic.
C6: Strategy | D6: UDS Type | E6: UDS Formula | H6: Bid Vol | I6: Best Bid | K6: Best Ask | L6: Ask Vol | M6: Expiration | P6: Symbol | Q6: Bid Vol | R6: Best Bid | T6: Best Ask | U6: Ask Vol
C7: Bear Put Spread | D7: BearP | E7: ="UDS("&Symbols!N7&"-"&Symbols!O7&","&D7&")" -> UDS(P.US.CLEV174700-P.US.CLEV174800,BearP) | H7: =IFERROR(RTD("cqg.rtd", ,"ContractData",E7, "MT_LastBidVolume",, "T"),"") -> 111 | I7: =IFERROR(RTD("cqg.rtd", ,"ContractData",E7, "Bid",, "T"),"") -> -0.5 | K7: =IFERROR(RTD("cqg.rtd", ,"ContractData",E7, "Ask",, "T"),"") -> -0.46 | L7: =IFERROR(RTD("cqg.rtd", ,"ContractData",E7, "MT_LastAskVolume",, "T"),"") -> 171 | M7: Days | O7: Calls | P7: =(LEFT(P8,SEARCH("CLE",P8)+LEN("CLE")+2))&RIGHT(P8,LEN(P8)-(SEARCH("CLE",P8)+LEN("CLE")+2))-50 -> C.US.CLEV174700 | Q7: =IFERROR(RTD("cqg.rtd", ,"ContractData",P7, "MT_LastBidVolume",, "T"),"") -> 12 | R7: =IFERROR(RTD("cqg.rtd", ,"ContractData",P7, "Bid",, "T"),"") -> 1.62 | T7: =IFERROR(RTD("cqg.rtd", ,"ContractData",P7, "Ask",, "T"),"") -> 1.65 | U7: =IFERROR(RTD("cqg.rtd", ,"ContractData",P7, "MT_LastAskVolume",, "T"),"") -> 12
C8: Box Spread | D8: Box | E8: ="UDS("&Symbols!N8&"-"&Symbols!O8&"+"&Symbols!P8&"-"&Symbols!Q8&","&$D$8&")" -> UDS(C.US.CLEV174800-C.US.CLEV174850+P.US.CLEV174900-P.US.CLEV175150,Box) | H8: =IFERROR(RTD("cqg.rtd", ,"ContractData",E8, "MT_LastBidVolume",, "T"),"") -> 1 | I8: =IFERROR(RTD("cqg.rtd", ,"ContractData",E8, "Bid",, "T"),"") -> -1.83 | K8: =IFERROR(RTD("cqg.rtd", ,"ContractData",E8, "Ask",, "T"),"") -> -1.72 | L8: =IFERROR(RTD("cqg.rtd", ,"ContractData",E8, "MT_LastAskVolume",, "T"),"") -> 1 | M8: =IFERROR(RTD("cqg.rtd", ,"ContractData",P8, "OptionDaysToExp",, "T"),"") -> 21 | P8: =RTD("cqg.rtd", ,"ContractData",$P$1, "Symbol",, "T") -> C.US.CLEV174750 | Q8: =IFERROR(RTD("cqg.rtd", ,"ContractData",P8, "MT_LastBidVolume",, "T"),"") -> 140 | R8: =IFERROR(RTD("cqg.rtd", ,"ContractData",P8, "Bid",, "T"),"") -> 1.35 | T8: =IFERROR(RTD("cqg.rtd", ,"ContractData",P8, "Ask",, "T"),"") -> 1.37 | U8: =IFERROR(RTD("cqg.rtd", ,"ContractData",P8, "MT_LastAskVolume",, "T"),"") -> 140
C9: Bull Call Spread | D9: BullC | E9: ="UDS("&Symbols!N9&"-"&Symbols!O9&","&D9&")" -> UDS(C.US.CLEV174750-C.US.CLEV174800,BullC) | H9: =IFERROR(RTD("cqg.rtd", ,"ContractData",E9, "MT_LastBidVolume",, "T"),"") -> 150 | I9: =IFERROR(RTD("cqg.rtd", ,"ContractData",E9, "Bid",, "T"),"") -> 0.24 | K9: =IFERROR(RTD("cqg.rtd", ,"ContractData",E9, "Ask",, "T"),"") -> 0.25 | L9: =IFERROR(RTD("cqg.rtd", ,"ContractData",E9, "MT_LastAskVolume",, "T"),"") -> 966 | M9: Date | P9: =(LEFT(P8,SEARCH("CLE",P8)+LEN("CLE")+2))&RIGHT(P8,LEN(P8)-(SEARCH("CLE",P8)+LEN("CLE")+2))+50 -> C.US.CLEV174800 | Q9: =IFERROR(RTD("cqg.rtd", ,"ContractData",P9, "MT_LastBidVolume",, "T"),"") -> 144 | R9: =IFERROR(RTD("cqg.rtd", ,"ContractData",P9, "Bid",, "T"),"") -> 1.11 | T9: =IFERROR(RTD("cqg.rtd", ,"ContractData",P9, "Ask",, "T"),"") -> 1.13 | U9: =IFERROR(RTD("cqg.rtd", ,"ContractData",P9, "MT_LastAskVolume",, "T"),"") -> 167
C10: Butterfly Call Long | D10: BflyCL | E10: ="UDS("&Symbols!N10&"-2*"&Symbols!O10&"+"&Symbols!P10&","&D10&")" -> UDS(C.US.CLEV174700-2*C.US.CLEV174750+C.US.CLEV174800,BflyCL) | H10: =IFERROR(RTD("cqg.rtd", ,"ContractData",E10, "MT_LastBidVolume",, "T"),"") -> 12 | I10: =IFERROR(RTD("cqg.rtd", ,"ContractData",E10, "Bid",, "T"),"") -> -0.01 | K10: =IFERROR(RTD("cqg.rtd", ,"ContractData",E10, "Ask",, "T"),"") -> 0.08 | L10: =IFERROR(RTD("cqg.rtd", ,"ContractData",E10, "MT_LastAskVolume",, "T"),"") -> 12 | M10: =IFERROR(RTD("cqg.rtd", ,"ContractData",P8, "ExpirationDate",, "T"),"") -> 2017-09-15 | P10: =(LEFT(P9,SEARCH("CLE",P9)+LEN("CLE")+2))&RIGHT(P9,LEN(P9)-(SEARCH("CLE",P9)+LEN("CLE")+2))+50 -> C.US.CLEV174850 | Q10: =IFERROR(RTD("cqg.rtd", ,"ContractData",P10, "MT_LastBidVolume",, "T"),"") -> 1 | R10: =IFERROR(RTD("cqg.rtd", ,"ContractData",P10, "Bid",, "T"),"") -> 0.91 | T10: =IFERROR(RTD("cqg.rtd", ,"ContractData",P10, "Ask",, "T"),"") -> 0.92 | U10: =IFERROR(RTD("cqg.rtd", ,"ContractData",P10, "MT_LastAskVolume",, "T"),"") -> 125
C11: Butterfly Call Short | D11: BflyCS | E11: ="UDS(-"&Symbols!N11&"+2*"&Symbols!O11&"-"&Symbols!P11&","&D11&")" -> UDS(-C.US.CLEV174900+2*C.US.CLEV174950-C.US.CLEV175000,BflyCS) | H11: =IFERROR(RTD("cqg.rtd", ,"ContractData",E11, "MT_LastBidVolume",, "T"),"") -> 10 | I11: =IFERROR(RTD("cqg.rtd", ,"ContractData",E11, "Bid",, "T"),"") -> -0.06 | K11: =IFERROR(RTD("cqg.rtd", ,"ContractData",E11, "Ask",, "T"),"") -> 0 | L11: =IFERROR(RTD("cqg.rtd", ,"ContractData",E11, "MT_LastAskVolume",, "T"),"") -> 140 | P11: =(LEFT(P10,SEARCH("CLE",P10)+LEN("CLE")+2))&RIGHT(P10,LEN(P10)-(SEARCH("CLE",P10)+LEN("CLE")+2))+50 -> C.US.CLEV174900 | Q11: =IFERROR(RTD("cqg.rtd", ,"ContractData",P11, "MT_LastBidVolume",, "T"),"") -> 153 | R11: =IFERROR(RTD("cqg.rtd", ,"ContractData",P11, "Bid",, "T"),"") -> 0.73 | T11: =IFERROR(RTD("cqg.rtd", ,"ContractData",P11, "Ask",, "T"),"") -> 0.74 | U11: =IFERROR(RTD("cqg.rtd", ,"ContractData",P11, "MT_LastAskVolume",, "T"),"") -> 10
C12: Butterfly Put Long | D12: BflyPL | E12: ="UDS("&Symbols!N12&"-2*"&Symbols!O12&"+"&Symbols!P12&","&D12&")" -> UDS(P.US.CLEV174850-2*P.US.CLEV174900+P.US.CLEV174950,BflyPL) | H12: =IFERROR(RTD("cqg.rtd", ,"ContractData",E12, "MT_LastBidVolume",, "T"),"") -> 6 | I12: =IFERROR(RTD("cqg.rtd", ,"ContractData",E12, "Bid",, "T"),"") -> -0.02 | K12: =IFERROR(RTD("cqg.rtd", ,"ContractData",E12, "Ask",, "T"),"") -> 0.08 | L12: =IFERROR(RTD("cqg.rtd", ,"ContractData",E12, "MT_LastAskVolume",, "T"),"") -> 6 | O12: =IFERROR(RTD("cqg.rtd", ,"ContractData","CLE"&Symbols!I2, "LongDescription",, "T"),"") -> Crude Light (Globex), Oct 17 | R12: =IFERROR(RTD("cqg.rtd", ,"ContractData","CLE"&Symbols!I2, "LastTrade",, "T"),"") -> 47.71 | T12: ="NC "&IFERROR(TEXT(RTD("cqg.rtd",,"ContractData","CLE"&Symbols!I2,"NetLastTrade",,"T"),"#.00"),"") -> NC .28
C13: Butterfly Put Short | D13: BflyPS | E13: ="UDS(-"&Symbols!N13&"+2*"&Symbols!O13&"-"&Symbols!P13&","&D13&")" -> UDS(-P.US.CLEV174850+2*P.US.CLEV174900-P.US.CLEV175150,BflyPS) | H13: =IFERROR(RTD("cqg.rtd", ,"ContractData",E13, "MT_LastBidVolume",, "T"),"") -> 1 | I13: =IFERROR(RTD("cqg.rtd", ,"ContractData",E13, "Bid",, "T"),"") -> -1.72 | K13: =IFERROR(RTD("cqg.rtd", ,"ContractData",E13, "Ask",, "T"),"") -> -1.59 | L13: =IFERROR(RTD("cqg.rtd", ,"ContractData",E13, "MT_LastAskVolume",, "T"),"") -> 1 | M13: Call ATM IV | O13: Puts | P13: =(LEFT(P14,SEARCH("CLE",P14)+LEN("CLE")+2))&RIGHT(P14,LEN(P14)-(SEARCH("CLE",P14)+LEN("CLE")+2))-50 -> P.US.CLEV174700 | Q13: =IFERROR(RTD("cqg.rtd", ,"ContractData",P13, "MT_LastBidVolume",, "T"),"") -> 233 | R13: =IFERROR(RTD("cqg.rtd", ,"ContractData",P13, "Bid",, "T"),"") -> 0.92 | T13: =IFERROR(RTD("cqg.rtd", ,"ContractData",P13, "Ask",, "T"),"") -> 0.94 | U13: =IFERROR(RTD("cqg.rtd", ,"ContractData",P13, "MT_LastAskVolume",, "T"),"") -> 310
C14: Calendar Call | D14: CalC | E14: ="UDS(-"&Symbols!N14&"+"&Symbols!O14&","&D14&")" -> UDS(-C.US.CLEV174900+C.US.CLEX174900,CalC) | H14: =IFERROR(RTD("cqg.rtd", ,"ContractData",E14, "MT_LastBidVolume",, "T"),"") -> 10 | I14: =IFERROR(RTD("cqg.rtd", ,"ContractData",E14, "Bid",, "T"),"") -> 0.79 | K14: =IFERROR(RTD("cqg.rtd", ,"ContractData",E14, "Ask",, "T"),"") -> 0.82 | L14: =IFERROR(RTD("cqg.rtd", ,"ContractData",E14, "MT_LastAskVolume",, "T"),"") -> 153 | M14: =RTD("cqg.rtd", ,"ContractData",P8, "ImpliedVolatility",, "T") -> 27.17 | P14: =RTD("cqg.rtd", ,"ContractData",$Q$1, "Symbol",, "T") -> P.US.CLEV174750 | Q14: =IFERROR(RTD("cqg.rtd", ,"ContractData",P14, "MT_LastBidVolume",, "T"),"") -> 323 | R14: =IFERROR(RTD("cqg.rtd", ,"ContractData",P14, "Bid",, "T"),"") -> 1.14 | T14: =IFERROR(RTD("cqg.rtd", ,"ContractData",P14, "Ask",, "T"),"") -> 1.17 | U14: =IFERROR(RTD("cqg.rtd", ,"ContractData",P14, "MT_LastAskVolume",, "T"),"") -> 299
C15: Call | E15: =Symbols!N15 -> C.US.CLEV174750 | H15: =IFERROR(RTD("cqg.rtd", ,"ContractData",E15, "MT_LastBidVolume",, "T"),"") -> 140 | I15: =IFERROR(RTD("cqg.rtd", ,"ContractData",E15, "Bid",, "T"),"") -> 1.35 | K15: =IFERROR(RTD("cqg.rtd", ,"ContractData",E15, "Ask",, "T"),"") -> 1.37 | L15: =IFERROR(RTD("cqg.rtd", ,"ContractData",E15, "MT_LastAskVolume",, "T"),"") -> 140 | M15: Put ATM IV | P15: =(LEFT(P14,SEARCH("CLE",P14)+LEN("CLE")+2))&RIGHT(P14,LEN(P14)-(SEARCH("CLE",P14)+LEN("CLE")+2))+50 -> P.US.CLEV174800 | Q15: =IFERROR(RTD("cqg.rtd", ,"ContractData",P15, "MT_LastBidVolume",, "T"),"") -> 171 | R15: =IFERROR(RTD("cqg.rtd", ,"ContractData",P15, "Bid",, "T"),"") -> 1.4 | T15: =IFERROR(RTD("cqg.rtd", ,"ContractData",P15, "Ask",, "T"),"") -> 1.42 | U15: =IFERROR(RTD("cqg.rtd", ,"ContractData",P15, "MT_LastAskVolume",, "T"),"") -> 111
C16: Put | E16: =Symbols!N16 -> P.US.CLEV174750 | H16: =IFERROR(RTD("cqg.rtd", ,"ContractData",E16, "MT_LastBidVolume",, "T"),"") -> 323 | I16: =IFERROR(RTD("cqg.rtd", ,"ContractData",E16, "Bid",, "T"),"") -> 1.14 | K16: =IFERROR(RTD("cqg.rtd", ,"ContractData",E16, "Ask",, "T"),"") -> 1.17 | L16: =IFERROR(RTD("cqg.rtd", ,"ContractData",E16, "MT_LastAskVolume",, "T"),"") -> 299 | M16: =RTD("cqg.rtd", ,"ContractData",P14, "ImpliedVolatility",, "T") -> 27.83 | P16: =(LEFT(P15,SEARCH("CLE",P15)+LEN("CLE")+2))&RIGHT(P15,LEN(P15)-(SEARCH("CLE",P15)+LEN("CLE")+2))+50 -> P.US.CLEV174850 | Q16: =IFERROR(RTD("cqg.rtd", ,"ContractData",P16, "MT_LastBidVolume",, "T"),"") -> 134 | R16: =IFERROR(RTD("cqg.rtd", ,"ContractData",P16, "Bid",, "T"),"") -> 1.69 | T16: =IFERROR(RTD("cqg.rtd", ,"ContractData",P16, "Ask",, "T"),"") -> 1.72 | U16: =IFERROR(RTD("cqg.rtd", ,"ContractData",P16, "MT_LastAskVolume",, "T"),"") -> 133
C17: Christmas Tree Call Long | D17: CTreeCL | E17: ="UDS("&Symbols!N17&"-"&Symbols!O17&"-"&Symbols!P17&","&D17&")" -> UDS(C.US.CLEV174850-C.US.CLEV174800-C.US.CLEV174950,CTreeCL) | H17: =IFERROR(RTD("cqg.rtd", ,"ContractData",E17, "MT_LastBidVolume",, "T"),"") -> 1 | I17: =IFERROR(RTD("cqg.rtd", ,"ContractData",E17, "Bid",, "T"),"") -> -0.82 | K17: =IFERROR(RTD("cqg.rtd", ,"ContractData",E17, "Ask",, "T"),"") -> -0.77 | L17: =IFERROR(RTD("cqg.rtd", ,"ContractData",E17, "MT_LastAskVolume",, "T"),"") -> 125 | P17: =(LEFT(P16,SEARCH("CLE",P16)+LEN("CLE")+2))&RIGHT(P16,LEN(P16)-(SEARCH("CLE",P16)+LEN("CLE")+2))+50 -> P.US.CLEV174900 | Q17: =IFERROR(RTD("cqg.rtd", ,"ContractData",P17, "MT_LastBidVolume",, "T"),"") -> 12 | R17: =IFERROR(RTD("cqg.rtd", ,"ContractData",P17, "Bid",, "T"),"") -> 2.02 | T17: =IFERROR(RTD("cqg.rtd", ,"ContractData",P17, "Ask",, "T"),"") -> 2.04 | U17: =IFERROR(RTD("cqg.rtd", ,"ContractData",P17, "MT_LastAskVolume",, "T"),"") -> 12
C18: Christmas Tree Put Long | D18: CTreePL | E18: ="UDS(-"&Symbols!N18&"-"&Symbols!O18&"+"&Symbols!P18&","&D18&")" -> UDS(-P.US.CLEV174850-P.US.CLEV174700+P.US.CLEV174950,CTreePL) | H18: =IFERROR(RTD("cqg.rtd", ,"ContractData",E18, "MT_LastBidVolume",, "T"),"") -> 11 | I18: =IFERROR(RTD("cqg.rtd", ,"ContractData",E18, "Bid",, "T"),"") -> -0.29 | K18: =IFERROR(RTD("cqg.rtd", ,"ContractData",E18, "Ask",, "T"),"") -> -0.21 | L18: =IFERROR(RTD("cqg.rtd", ,"ContractData",E18, "MT_LastAskVolume",, "T"),"") -> 11
C19: Delta Neutral Call Ratio | D19: DNeutC | E19: ="UDS("&F19&"*"&Symbols!N19&"-"&G19&"*"&Symbols!O19&","&D19&")" -> UDS(137*C.US.CLEV174800-156*C.US.CLEV174850,DNeutC) | F19: 137 | G19: 156 | H19: =IFERROR(RTD("cqg.rtd", ,"ContractData",E19, "MT_LastBidVolume",, "T"),"") -> 0 | I19: =IFERROR(RTD("cqg.rtd", ,"ContractData",E19, "Bid",, "T"),"") -> 8.55 | K19: =IFERROR(RTD("cqg.rtd", ,"ContractData",E19, "Ask",, "T"),"") -> 12.85 | L19: =IFERROR(RTD("cqg.rtd", ,"ContractData",E19, "MT_LastAskVolume",, "T"),"") -> 0 | R19: Frequency Distribution Call IV
C20: Iron Butterfly Gut Long | D20: IBGutL | E20: ="UDS("&Symbols!N20&"-"&Symbols!O20&"-"&Symbols!P20&"+"&Symbols!Q20&","&D20&")" -> UDS(C.US.CLEV174700-C.US.CLEV174750-P.US.CLEV174850+P.US.CLEV174900,IBGutL) | H20: =IFERROR(RTD("cqg.rtd", ,"ContractData",E20, "MT_LastBidVolume",, "T"),"") -> 12 | I20: =IFERROR(RTD("cqg.rtd", ,"ContractData",E20, "Bid",, "T"),"") -> 0.55 | K20: =IFERROR(RTD("cqg.rtd", ,"ContractData",E20, "Ask",, "T"),"") -> 0.65 | L20: =IFERROR(RTD("cqg.rtd", ,"ContractData",E20, "MT_LastAskVolume",, "T"),"") -> 12
C21: Iron Butterfly Gut Short | D21: IBGutS | E21: ="UDS(-"&Symbols!N21&"+"&Symbols!O21&"+"&Symbols!P21&"-"&Symbols!Q21&","&D21&")" -> UDS(-C.US.CLEV174700+C.US.CLEV174750+P.US.CLEV174800-P.US.CLEV174850,IBGutS) | H21: =IFERROR(RTD("cqg.rtd", ,"ContractData",E21, "MT_LastBidVolume",, "T"),"") -> 12 | I21: =IFERROR(RTD("cqg.rtd", ,"ContractData",E21, "Bid",, "T"),"") -> -0.62 | K21: =IFERROR(RTD("cqg.rtd", ,"ContractData",E21, "Ask",, "T"),"") -> -0.52 | L21: =IFERROR(RTD("cqg.rtd", ,"ContractData",E21, "MT_LastAskVolume",, "T"),"") -> 12
C22: Iron Butterfly Short | D22: IBflyS | E22: ="UDS(-"&Symbols!N22&"+"&Symbols!O22&"+"&Symbols!P22&"-"&Symbols!Q22&","&D22&")" -> UDS(-P.US.CLEV174700+P.US.CLEV174750+C.US.CLEV174800-C.US.CLEV174850,IBflyS) | H22: =IFERROR(RTD("cqg.rtd", ,"ContractData",E22, "MT_LastBidVolume",, "T"),"") -> 125 | I22: =IFERROR(RTD("cqg.rtd", ,"ContractData",E22, "Bid",, "T"),"") -> 0.39 | K22: =IFERROR(RTD("cqg.rtd", ,"ContractData",E22, "Ask",, "T"),"") -> 0.47 | L22: =IFERROR(RTD("cqg.rtd", ,"ContractData",E22, "MT_LastAskVolume",, "T"),"") -> 1
C23: Ratio Spread Call | D23: RatioC | E23: ="UDS("&Symbols!N23&"-2*"&Symbols!O23&","&D23&")" -> UDS(C.US.CLEV174750-2*C.US.CLEV174800,RatioC) | H23: =IFERROR(RTD("cqg.rtd", ,"ContractData",E23, "MT_LastBidVolume",, "T"),"") -> 83 | I23: =IFERROR(RTD("cqg.rtd", ,"ContractData",E23, "Bid",, "T"),"") -> -0.91 | K23: =IFERROR(RTD("cqg.rtd", ,"ContractData",E23, "Ask",, "T"),"") -> -0.85 | L23: =IFERROR(RTD("cqg.rtd", ,"ContractData",E23, "MT_LastAskVolume",, "T"),"") -> 72
C24: Ratio Spread Put | D24: RatioP | E24: ="UDS("&Symbols!N24&"-2*"&Symbols!O24&","&D24&")" -> UDS(P.US.CLEV174750-2*P.US.CLEV174800,RatioP) | H24: =IFERROR(RTD("cqg.rtd", ,"ContractData",E24, "MT_LastBidVolume",, "T"),"") -> 55 | I24: =IFERROR(RTD("cqg.rtd", ,"ContractData",E24, "Bid",, "T"),"") -> -1.7 | K24: =IFERROR(RTD("cqg.rtd", ,"ContractData",E24, "Ask",, "T"),"") -> -1.63 | L24: =IFERROR(RTD("cqg.rtd", ,"ContractData",E24, "MT_LastAskVolume",, "T"),"") -> 85
C25: Semi-Underlying Long | D25: SemiUL | E25: ="UDS(-"&Symbols!N25&"+"&Symbols!O25&","&D25&")" -> UDS(-C.US.CLEV174750+P.US.CLEV174750,SemiUL) | H25: =IFERROR(RTD("cqg.rtd", ,"ContractData",E25, "MT_LastBidVolume",, "T"),"") -> 140 | I25: =IFERROR(RTD("cqg.rtd", ,"ContractData",E25, "Bid",, "T"),"") -> -0.23 | K25: =IFERROR(RTD("cqg.rtd", ,"ContractData",E25, "Ask",, "T"),"") -> -0.18 | L25: =IFERROR(RTD("cqg.rtd", ,"ContractData",E25, "MT_LastAskVolume",, "T"),"") -> 140 | R25: Frequency Distribution Put IV
C26: Semi-Underlying Short | D26: SemiUS | E26: ="UDS("&Symbols!N26&"-"&Symbols!O26&","&D26&")" -> UDS(P.US.CLEV174750-C.US.CLEV174750,SemiUS) | H26: =IFERROR(RTD("cqg.rtd", ,"ContractData",E26, "MT_LastBidVolume",, "T"),"") -> 140 | I26: =IFERROR(RTD("cqg.rtd", ,"ContractData",E26, "Bid",, "T"),"") -> -0.23 | K26: =IFERROR(RTD("cqg.rtd", ,"ContractData",E26, "Ask",, "T"),"") -> -0.18 | L26: =IFERROR(RTD("cqg.rtd", ,"ContractData",E26, "MT_LastAskVolume",, "T"),"") -> 140
C27: Straddle Long | D27: StradL | E27: ="UDS("&Symbols!N27&"+"&Symbols!O27&","&D27&")" -> UDS(C.US.CLEV174700+P.US.CLEV174700,StradL) | H27: =IFERROR(RTD("cqg.rtd", ,"ContractData",E27, "MT_LastBidVolume",, "T"),"") -> 15 | I27: =IFERROR(RTD("cqg.rtd", ,"ContractData",E27, "Bid",, "T"),"") -> 2.55 | K27: =IFERROR(RTD("cqg.rtd", ,"ContractData",E27, "Ask",, "T"),"") -> 2.59 | L27: =IFERROR(RTD("cqg.rtd", ,"ContractData",E27, "MT_LastAskVolume",, "T"),"") -> 15
C28: Strangle Long | D28: StrangL | E28: ="UDS("&Symbols!N28&"+"&Symbols!O28&","&D28&")" -> UDS(C.US.CLEV174700+P.US.CLEV174850,StrangL) | H28: =IFERROR(RTD("cqg.rtd", ,"ContractData",E28, "MT_LastBidVolume",, "T"),"") -> 12 | I28: =IFERROR(RTD("cqg.rtd", ,"ContractData",E28, "Bid",, "T"),"") -> 3.31 | K28: =IFERROR(RTD("cqg.rtd", ,"ContractData",E28, "Ask",, "T"),"") -> 3.37 | L28: =IFERROR(RTD("cqg.rtd", ,"ContractData",E28, "MT_LastAskVolume",, "T"),"") -> 12
C29: Synthetic Underlying Long | D29: SynUL | E29: ="UDS("&Symbols!N29&"-"&Symbols!O29&","&D29&")" -> UDS(C.US.CLEV174900-P.US.CLEV174900,SynUL) | H29: =IFERROR(RTD("cqg.rtd", ,"ContractData",E29, "MT_LastBidVolume",, "T"),"") -> 12 | I29: =IFERROR(RTD("cqg.rtd", ,"ContractData",E29, "Bid",, "T"),"") -> -1.31 | K29: =IFERROR(RTD("cqg.rtd", ,"ContractData",E29, "Ask",, "T"),"") -> -1.28 | L29: =IFERROR(RTD("cqg.rtd", ,"ContractData",E29, "MT_LastAskVolume",, "T"),"") -> 10
C30: CQG Inc., Copyright © 2017 Designed by Thom Hartle The Options Quote series in the upper right will update as the ATM strike changes. | N30: The Frequency Distribution uses CQG IV symbols for historical data.

Sheet Symbols
B2: Enter in the Expiry (?1) | C2: Current ATM Strike: | E2: =RTD("cqg.rtd", ,"ContractData","C.CLE?", "Strike",, "T") -> 4750 | F2: Step | G2: 50 | H2: Expiry: | I2: ?1 | J2: =LEFT(RTD("cqg.rtd", ,"ContractData","C.CLE"&I2, "Symbol",, "T"),11) -> C.US.CLEV17 | L2: =LEFT(RTD("cqg.rtd", ,"ContractData","P.CLE"&I2, "Symbol",, "T"),11) -> P.US.CLEV17
C3: Strikes | D3: First | E3: Second | F3: Third | G3: Fourth | H3: Fifth | I3: Sixth | J3: Seventh | K3: Eight | L3: Ninth | M3: Tenth
B4: Enter in the first Strike and the rest | D4: 4700 | E4: =D4+$G$2 -> 4750 | F4: 4800 | G4: 4850 | H4: 4900 | I4: 4950 | J4: 5000 | K4: 5050 | L4: 5100 | M4: 5150
B5: will update or overwrite the strikes.
C6: Symbols
B7: =Display!C7 -> Bear Put Spread | C7: 2 | N7: =L2&D4 -> P.US.CLEV174700 | O7: =L2&F4 -> P.US.CLEV174800
B8: =Display!C8 -> Box Spread | C8: 4 | N8: =J2&F4 -> C.US.CLEV174800 | O8: =J2&G4 -> C.US.CLEV174850 | P8: =L2&H4 -> P.US.CLEV174900 | Q8: =L2&M4 -> P.US.CLEV175150
B9: =Display!C9 -> Bull Call Spread | C9: 2 | N9: =J2&E4 -> C.US.CLEV174750 | O9: =J2&F4 -> C.US.CLEV174800
B10: =Display!C10 -> Butterfly Call Long | C10: 3 | N10: =J2&D4 -> C.US.CLEV174700 | O10: =J2&E4 -> C.US.CLEV174750 | P10: =J2&F4 -> C.US.CLEV174800
B11: =Display!C11 -> Butterfly Call Short | C11: 3 | N11: =J2&H4 -> C.US.CLEV174900 | O11: =J2&I4 -> C.US.CLEV174950 | P11: =J2&J4 -> C.US.CLEV175000
B12: =Display!C12 -> Butterfly Put Long | C12: 3 | N12: =L2&G4 -> P.US.CLEV174850 | O12: =L2&H4 -> P.US.CLEV174900 | P12: =L2&I4 -> P.US.CLEV174950
B13: =Display!C13 -> Butterfly Put Short | C13: 3 | N13: =L2&G4 -> P.US.CLEV174850 | O13: =L2&H4 -> P.US.CLEV174900 | P13: =L2&M4 -> P.US.CLEV175150
B14: =Display!C14&" (Enter 2nd Expiri:)" -> Calendar Call (Enter 2nd Expiri:) | C14: ?2 | N14: =J2&H4 -> C.US.CLEV174900 | O14: =LEFT(RTD("cqg.rtd", ,"ContractData","C.CLE"&C14, "Symbol",, "T"),11)&H4 -> C.US.CLEX174900
B15: =Display!C15 -> Call | C15: 1 | N15: =J2&E4 -> C.US.CLEV174750
B16: =Display!C16 -> Put | C16: 1 | N16: =L2&E4 -> P.US.CLEV174750
B17: =Display!C17 -> Christmas Tree Call Long | C17: 3 | N17: =J2&G4 -> C.US.CLEV174850 | O17: =J2&F4 -> C.US.CLEV174800 | P17: =J2&I4 -> C.US.CLEV174950
B18: =Display!C18 -> Christmas Tree Put Long | C18: 3 | N18: =L2&G4 -> P.US.CLEV174850 | O18: =L2&D4 -> P.US.CLEV174700 | P18: =L2&I4 -> P.US.CLEV174950
B19: =Display!C19 -> Delta Neutral Call Ratio | C19: 2 | N19: =J2&F4 -> C.US.CLEV174800 | O19: =J2&G4 -> C.US.CLEV174850
B20: =Display!C20 -> Iron Butterfly Gut Long | C20: 4 | N20: =J2&D4 -> C.US.CLEV174700 | O20: =J2&E4 -> C.US.CLEV174750 | P20: =L2&G4 -> P.US.CLEV174850 | Q20: =L2&H4 -> P.US.CLEV174900
B21: =Display!C21 -> Iron Butterfly Gut Short | C21: 4 | N21: =J2&D4 -> C.US.CLEV174700 | O21: =J2&E4 -> C.US.CLEV174750 | P21: =L2&F4 -> P.US.CLEV174800 | Q21: =L2&G4 -> P.US.CLEV174850
B22: =Display!C22 -> Iron Butterfly Short | C22: 4 | N22: =L2&D4 -> P.US.CLEV174700 | O22: =L2&E4 -> P.US.CLEV174750 | P22: =J2&F4 -> C.US.CLEV174800 | Q22: =J2&G4 -> C.US.CLEV174850
B23: =Display!C23 -> Ratio Spread Call | C23: 2 | N23: =J2&E4 -> C.US.CLEV174750 | O23: =J2&F4 -> C.US.CLEV174800
B24: =Display!C24 -> Ratio Spread Put | C24: 2 | N24: =L2&E4 -> P.US.CLEV174750 | O24: =L2&F4 -> P.US.CLEV174800
B25: =Display!C25 -> Semi-Underlying Long | C25: 2 | N25: =J2&E4 -> C.US.CLEV174750 | O25: =L2&E4 -> P.US.CLEV174750
B26: =Display!C26 -> Semi-Underlying Short | C26: 2 | N26: =L2&E4 -> P.US.CLEV174750 | O26: =J2&E4 -> C.US.CLEV174750
B27: =Display!C27 -> Straddle Long | C27: 2 | N27: =J2&D4 -> C.US.CLEV174700 | O27: =L2&D4 -> P.US.CLEV174700
B28: =Display!C28 -> Strangle Long | C28: 2 | N28: =J2&D4 -> C.US.CLEV174700 | O28: =L2&G4 -> P.US.CLEV174850
B29: =Display!C29 -> Synthetic Underlying Long | C29: 2 | N29: =J2&H4 -> C.US.CLEV174900 | O29: =L2&H4 -> P.US.CLEV174900
C69: 5

Sheet Data (hidden)
C1: Open | D1: =RTD("cqg.rtd", , "ContractData",D4,"PrimarySessionOpenTime","0") -> 08:00:00 | K1: =MIN(D5:D204) -> 23.1 | L1: =MIN(P5:P204) -> 22.56 | O1: Open | P1: =RTD("cqg.rtd", , "ContractData",P4,"PrimarySessionOpenTime","0") -> 08:00:00
B2: =RTD("cqg.rtd",,"StudyData", $D$4, "Bar",, "Close",$E$4,C5,"All",,,,"T") -> 0.2784 | C2: Close | D2: =RTD("cqg.rtd", , "ContractData",D4,"PrimarySessionCloseTime") -> 13:30:00 | E2: =D2-D1 -> 0.2291666667 | F2: =ROUND(IF(E2>0,E2*1440,1440+(1440*E2)),0) -> 330 | G2: =ROUNDDOWN(G4,0) -> 22 | H2: =ROUNDUP(H4,0) -> 50 | I2: =ROUND(ROUNDUP(((H2-G2)/35),2),1) -> 0.8 | K2: =MIN(K1:L1) -> 22.56 | N2: =RTD("cqg.rtd",,"StudyData", $D$4, "Bar",, "Close",$E$4,O5,"All",,,,"T") -> 0.2784 | O2: Close | P2: =RTD("cqg.rtd", , "ContractData",P4,"PrimarySessionCloseTime") -> 13:30:00 | Q2: =P2-P1 -> 0.2291666667 | R2: =ROUND(IF(Q2>0,Q2*1440,1440+(1440*Q2)),0) -> 330 | S2: =ROUNDDOWN(S4,0) -> 22 | T2: =ROUNDUP(T4,0) -> 51 | U2: =ROUND(ROUNDUP(((T2-S2)/35),2),1) -> 0.8
G3: =IF((G4-G2)>0.5,0.5,0) -> 0.5 | S3: =IF((S4-S2)>0.5,0.5,0) -> 0.5
D4: CLECIV | E4: D | G4: =K2 -> 22.56 | H4: =MAX(D5:D204) -> 49.6 | J4: =G5+I4 -> 22.5 | P4: CLEPIV | Q4: D | S4: =K2 -> 22.56 | T4: =MAX(P5:P204) -> 50.07 | V4: =S5+U4 -> 22.5
C5: 0 | D5: =IF(RTD("cqg.rtd",,"StudyData", $D$4, "Bar",, "Close",$E$4,C5,"All",,,,"T")="","",RTD("cqg.rtd",,"StudyData", $D$4, "Bar",, "Close",$E$4,C5,"All",,,,"T")*100) -> 27.84 | G5: =G2+G3 -> 22.5 | H5: =D5 -> 27.84 | J5: =FREQUENCY(H5:H204,G5:G40) -> 0 | K5: =IF(AND($D$5>=G5,$D$5<G6),IF(J5=0,1,J5),NA()) ->  | O5: 0 | P5: =IF(RTD("cqg.rtd",,"StudyData", $P$4, "Bar",, "Close",$Q$4,O5,"All",,,,"T")="","",RTD("cqg.rtd",,"StudyData", $P$4, "Bar",, "Close",$Q$4,O5,"All",,,,"T")*100) -> 28.04 | S5: =S2+S3 -> 22.5 | T5: =P5 -> 28.04 | V5: =FREQUENCY(T5:T204,S5:S40) -> 0 | W5: =IF(AND($D$5>=S5,$D$5<S6),IF(V5=0,1,V5),NA()) -> 
C6: =C5-1 -> -1 | D6: =IF(RTD("cqg.rtd",,"StudyData", $D$4, "Bar",, "Close",$E$4,C6,"All",,,,"T")="","",RTD("cqg.rtd",,"StudyData", $D$4, "Bar",, "Close",$E$4,C6,"All",,,,"T")*100) -> 25.86 | G6: =G5+$I$2 -> 23.3 | H6: =D6 -> 25.86 | J6: 1 | K6: =IF(AND($D$5>=G6,$D$5<G7),IF(J6=0,1,J6),NA()) ->  | O6: =O5-1 -> -1 | P6: =IF(RTD("cqg.rtd",,"StudyData", $P$4, "Bar",, "Close",$Q$4,O6,"All",,,,"T")="","",RTD("cqg.rtd",,"StudyData", $P$4, "Bar",, "Close",$Q$4,O6,"All",,,,"T")*100) -> 28.96 | S6: =S5+$I$2 -> 23.3 | T6: =P6 -> 28.96 | V6: 3 | W6: =IF(AND($D$5>=S6,$D$5<S7),IF(V6=0,1,V6),NA()) -> 
C7: =C6-1 -> -2 | D7: =IF(RTD("cqg.rtd",,"StudyData", $D$4, "Bar",, "Close",$E$4,C7,"All",,,,"T")="","",RTD("cqg.rtd",,"StudyData", $D$4, "Bar",, "Close",$E$4,C7,"All",,,,"T")*100) -> 27.25 | G7: =G6+$I$2 -> 24.1 | H7: 27.25 | J7: 1 | O7: =O6-1 -> -2 | P7: =IF(RTD("cqg.rtd",,"StudyData", $P$4, "Bar",, "Close",$Q$4,O7,"All",,,,"T")="","",RTD("cqg.rtd",,"StudyData", $P$4, "Bar",, "Close",$Q$4,O7,"All",,,,"T")*100) -> 26.76 | S7: =S6+$I$2 -> 24.1 | T7: 26.76 | V7: 0
C8: -3 | D8: =IF(RTD("cqg.rtd",,"StudyData", $D$4, "Bar",, "Close",$E$4,C8,"All",,,,"T")="","",RTD("cqg.rtd",,"StudyData", $D$4, "Bar",, "Close",$E$4,C8,"All",,,,"T")*100) -> 26.58 | G8: 24.9 | H8: 26.58 | J8: 6 | O8: -3 | P8: =IF(RTD("cqg.rtd",,"StudyData", $P$4, "Bar",, "Close",$Q$4,O8,"All",,,,"T")="","",RTD("cqg.rtd",,"StudyData", $P$4, "Bar",, "Close",$Q$4,O8,"All",,,,"T")*100) -> 27.76 | S8: 24.9 | T8: 27.76 | V8: 8
C9: -4 | D9: =IF(RTD("cqg.rtd",,"StudyData", $D$4, "Bar",, "Close",$E$4,C9,"All",,,,"T")="","",RTD("cqg.rtd",,"StudyData", $D$4, "Bar",, "Close",$E$4,C9,"All",,,,"T")*100) -> 26.16 | G9: 25.7 | H9: 26.16 | J9: 3 | O9: -4 | P9: =IF(RTD("cqg.rtd",,"StudyData", $P$4, "Bar",, "Close",$Q$4,O9,"All",,,,"T")="","",RTD("cqg.rtd",,"StudyData", $P$4, "Bar",, "Close",$Q$4,O9,"All",,,,"T")*100) -> 28.07 | S9: 25.7 | T9: 28.07 | V9: 11
C10: -5 | D10: =IF(RTD("cqg.rtd",,"StudyData", $D$4, "Bar",, "Close",$E$4,C10,"All",,,,"T")="","",RTD("cqg.rtd",,"StudyData", $D$4, "Bar",, "Close",$E$4,C10,"All",,,,"T")*100) -> 25.61 | G10: 26.5 | H10: 25.61 | J10: 11 | O10: -5 | P10: =IF(RTD("cqg.rtd",,"StudyData", $P$4, "Bar",, "Close",$Q$4,O10,"All",,,,"T")="","",RTD("cqg.rtd",,"StudyData", $P$4, "Bar",, "Close",$Q$4,O10,"All",,,,"T")*100) -> 28.73 | S10: 26.5 | T10: 28.73 | V10: 6
C11: -6 | D11: =IF(RTD("cqg.rtd",,"StudyData", $D$4, "Bar",, "Close",$E$4,C11,"All",,,,"T")="","",RTD("cqg.rtd",,"StudyData", $D$4, "Bar",, "Close",$E$4,C11,"All",,,,"T")*100) -> 28.22 | G11: 27.3 | H11: 28.22 | J11: 12 | K11: 12 | O11: -6 | P11: =IF(RTD("cqg.rtd",,"StudyData", $P$4, "Bar",, "Close",$Q$4,O11,"All",,,,"T")="","",RTD("cqg.rtd",,"StudyData", $P$4, "Bar",, "Close",$Q$4,O11,"All",,,,"T")*100) -> 27.58 | S11: 27.3 | T11: 27.58 | V11: 22 | W11: 22
C12: -7 | D12: =IF(RTD("cqg.rtd",,"StudyData", $D$4, "Bar",, "Close",$E$4,C12,"All",,,,"T")="","",RTD("cqg.rtd",,"StudyData", $D$4, "Bar",, "Close",$E$4,C12,"All",,,,"T")*100) -> 27.73 | G12: 28.1 | H12: 27.73 | J12: 29 | O12: -7 | P12: =IF(RTD("cqg.rtd",,"StudyData", $P$4, "Bar",, "Close",$Q$4,O12,"All",,,,"T")="","",RTD("cqg.rtd",,"StudyData", $P$4, "Bar",, "Close",$Q$4,O12,"All",,,,"T")*100) -> 29.32 | S12: 28.1 | T12: 29.32 | V12: 23
C13: -8 | D13: =IF(RTD("cqg.rtd",,"StudyData", $D$4, "Bar",, "Close",$E$4,C13,"All",,,,"T")="","",RTD("cqg.rtd",,"StudyData", $D$4, "Bar",, "Close",$E$4,C13,"All",,,,"T")*100) -> 28.14 | G13: 28.9 | H13: 28.14 | J13: 41 | O13: -8 | P13: =IF(RTD("cqg.rtd",,"StudyData", $P$4, "Bar",, "Close",$Q$4,O13,"All",,,,"T")="","",RTD("cqg.rtd",,"StudyData", $P$4, "Bar",, "Close",$Q$4,O13,"All",,,,"T")*100) -> 29.11 | S13: 28.9 | T13: 29.11 | V13: 30
C14: -9 | D14: =IF(RTD("cqg.rtd",,"StudyData", $D$4, "Bar",, "Close",$E$4,C14,"All",,,,"T")="","",RTD("cqg.rtd",,"StudyData", $D$4, "Bar",, "Close",$E$4,C14,"All",,,,"T")*100) -> 29.87 | G14: 29.7 | H14: 29.87 | J14: 29 | O14: -9 | P14: =IF(RTD("cqg.rtd",,"StudyData", $P$4, "Bar",, "Close",$Q$4,O14,"All",,,,"T")="","",RTD("cqg.rtd",,"StudyData", $P$4, "Bar",, "Close",$Q$4,O14,"All",,,,"T")*100) -> 27.88 | S14: 29.7 | T14: 27.88 | V14: 28
C15: -10 | D15: =IF(RTD("cqg.rtd",,"StudyData", $D$4, "Bar",, "Close",$E$4,C15,"All",,,,"T")="","",RTD("cqg.rtd",,"StudyData", $D$4, "Bar",, "Close",$E$4,C15,"All",,,,"T")*100) -> 28.56 | G15: 30.5 | H15: 28.56 | J15: 23 | O15: -10 | P15: =IF(RTD("cqg.rtd",,"StudyData", $P$4, "Bar",, "Close",$Q$4,O15,"All",,,,"T")="","",RTD("cqg.rtd",,"StudyData", $P$4, "Bar",, "Close",$Q$4,O15,"All",,,,"T")*100) -> 28.37 | S15: 30.5 | T15: 28.37 | V15: 20
C16: -11 | D16: =IF(RTD("cqg.rtd",,"StudyData", $D$4, "Bar",, "Close",$E$4,C16,"All",,,,"T")="","",RTD("cqg.rtd",,"StudyData", $D$4, "Bar",, "Close",$E$4,C16,"All",,,,"T")*100) -> 28.75 | G16: 31.3 | H16: 28.75 | J16: 14 | O16: -11 | P16: =IF(RTD("cqg.rtd",,"StudyData", $P$4, "Bar",, "Close",$Q$4,O16,"All",,,,"T")="","",RTD("cqg.rtd",,"StudyData", $P$4, "Bar",, "Close",$Q$4,O16,"All",,,,"T")*100) -> 28.05 | S16: 31.3 | T16: 28.05 | V16: 20
C17: -12 | D17: =IF(RTD("cqg.rtd",,"StudyData", $D$4, "Bar",, "Close",$E$4,C17,"All",,,,"T")="","",RTD("cqg.rtd",,"StudyData", $D$4, "Bar",, "Close",$E$4,C17,"All",,,,"T")*100) -> 27.68 | G17: 32.1 | H17: 27.68 | J17: 8 | O17: -12 | P17: =IF(RTD("cqg.rtd",,"StudyData", $P$4, "Bar",, "Close",$Q$4,O17,"All",,,,"T")="","",RTD("cqg.rtd",,"StudyData", $P$4, "Bar",, "Close",$Q$4,O17,"All",,,,"T")*100) -> 26.1 | S17: 32.1 | T17: 26.1 | V17: 5
C18: -13 | D18: =IF(RTD("cqg.rtd",,"StudyData", $D$4, "Bar",, "Close",$E$4,C18,"All",,,,"T")="","",RTD("cqg.rtd",,"StudyData", $D$4, "Bar",, "Close",$E$4,C18,"All",,,,"T")*100) -> 28.59 | G18: 32.9 | H18: 28.59 | J18: 2 | O18: -13 | P18: =IF(RTD("cqg.rtd",,"StudyData", $P$4, "Bar",, "Close",$Q$4,O18,"All",,,,"T")="","",RTD("cqg.rtd",,"StudyData", $P$4, "Bar",, "Close",$Q$4,O18,"All",,,,"T")*100) -> 26.81 | S18: 32.9 | T18: 26.81 | V18: 4
C19: -14 | D19: =IF(RTD("cqg.rtd",,"StudyData", $D$4, "Bar",, "Close",$E$4,C19,"All",,,,"T")="","",RTD("cqg.rtd",,"StudyData", $D$4, "Bar",, "Close",$E$4,C19,"All",,,,"T")*100) -> 27.59 | G19: 33.7 | H19: 27.59 | J19: 1 | O19: -14 | P19: =IF(RTD("cqg.rtd",,"StudyData", $P$4, "Bar",, "Close",$Q$4,O19,"All",,,,"T")="","",RTD("cqg.rtd",,"StudyData", $P$4, "Bar",, "Close",$Q$4,O19,"All",,,,"T")*100) -> 26.43 | S19: 33.7 | T19: 26.43 | V19: 5
C20: -15 | D20: =IF(RTD("cqg.rtd",,"StudyData", $D$4, "Bar",, "Close",$E$4,C20,"All",,,,"T")="","",RTD("cqg.rtd",,"StudyData", $D$4, "Bar",, "Close",$E$4,C20,"All",,,,"T")*100) -> 28.08 | G20: 34.5 | H20: 28.08 | J20: 0 | O20: -15 | P20: =IF(RTD("cqg.rtd",,"StudyData", $P$4, "Bar",, "Close",$Q$4,O20,"All",,,,"T")="","",RTD("cqg.rtd",,"StudyData", $P$4, "Bar",, "Close",$Q$4,O20,"All",,,,"T")*100) -> 26.33 | S20: 34.5 | T20: 26.33 | V20: 0
C21: -16 | D21: =IF(RTD("cqg.rtd",,"StudyData", $D$4, "Bar",, "Close",$E$4,C21,"All",,,,"T")="","",RTD("cqg.rtd",,"StudyData", $D$4, "Bar",, "Close",$E$4,C21,"All",,,,"T")*100) -> 28.44 | G21: 35.3 | H21: 28.44 | J21: 1 | O21: -16 | P21: =IF(RTD("cqg.rtd",,"StudyData", $P$4, "Bar",, "Close",$Q$4,O21,"All",,,,"T")="","",RTD("cqg.rtd",,"StudyData", $P$4, "Bar",, "Close",$Q$4,O21,"All",,,,"T")*100) -> 26.61 | S21: 35.3 | T21: 26.61 | V21: 0
C22: -17 | D22: =IF(RTD("cqg.rtd",,"StudyData", $D$4, "Bar",, "Close",$E$4,C22,"All",,,,"T")="","",RTD("cqg.rtd",,"StudyData", $D$4, "Bar",, "Close",$E$4,C22,"All",,,,"T")*100) -> 29.2 | G22: 36.1 | H22: 29.2 | J22: 1 | O22: -17 | P22: =IF(RTD("cqg.rtd",,"StudyData", $P$4, "Bar",, "Close",$Q$4,O22,"All",,,,"T")="","",RTD("cqg.rtd",,"StudyData", $P$4, "Bar",, "Close",$Q$4,O22,"All",,,,"T")*100) -> 27.57 | S22: 36.1 | T22: 27.57 | V22: 0
C23: -18 | D23: =IF(RTD("cqg.rtd",,"StudyData", $D$4, "Bar",, "Close",$E$4,C23,"All",,,,"T")="","",RTD("cqg.rtd",,"StudyData", $D$4, "Bar",, "Close",$E$4,C23,"All",,,,"T")*100) -> 28.78 | G23: 36.9 | H23: 28.78 | J23: 0 | O23: -18 | P23: =IF(RTD("cqg.rtd",,"StudyData", $P$4, "Bar",, "Close",$Q$4,O23,"All",,,,"T")="","",RTD("cqg.rtd",,"StudyData", $P$4, "Bar",, "Close",$Q$4,O23,"All",,,,"T")*100) -> 29.19 | S23: 36.9 | T23: 29.19 | V23: 1
C24: -19 | D24: =IF(RTD("cqg.rtd",,"StudyData", $D$4, "Bar",, "Close",$E$4,C24,"All",,,,"T")="","",RTD("cqg.rtd",,"StudyData", $D$4, "Bar",, "Close",$E$4,C24,"All",,,,"T")*100) -> 27.91 | G24: 37.7 | H24: 27.91 | J24: 0 | O24: -19 | P24: =IF(RTD("cqg.rtd",,"StudyData", $P$4, "Bar",, "Close",$Q$4,O24,"All",,,,"T")="","",RTD("cqg.rtd",,"StudyData", $P$4, "Bar",, "Close",$Q$4,O24,"All",,,,"T")*100) -> 29.31 | S24: 37.7 | T24: 29.31 | V24: 2
C25: -20 | D25: =IF(RTD("cqg.rtd",,"StudyData", $D$4, "Bar",, "Close",$E$4,C25,"All",,,,"T")="","",RTD("cqg.rtd",,"StudyData", $D$4, "Bar",, "Close",$E$4,C25,"All",,,,"T")*100) -> 28.8 | G25: 38.5 | H25: 28.8 | J25: 3 | O25: -20 | P25: =IF(RTD("cqg.rtd",,"StudyData", $P$4, "Bar",, "Close",$Q$4,O25,"All",,,,"T")="","",RTD("cqg.rtd",,"StudyData", $P$4, "Bar",, "Close",$Q$4,O25,"All",,,,"T")*100) -> 28.47 | S25: 38.5 | T25: 28.47 | V25: 3
C26: -21 | D26: =IF(RTD("cqg.rtd",,"StudyData", $D$4, "Bar",, "Close",$E$4,C26,"All",,,,"T")="","",RTD("cqg.rtd",,"StudyData", $D$4, "Bar",, "Close",$E$4,C26,"All",,,,"T")*100) -> 27.68 | G26: 39.3 | H26: 27.68 | J26: 0 | O26: -21 | P26: =IF(RTD("cqg.rtd",,"StudyData", $P$4, "Bar",, "Close",$Q$4,O26,"All",,,,"T")="","",RTD("cqg.rtd",,"StudyData", $P$4, "Bar",, "Close",$Q$4,O26,"All",,,,"T")*100) -> 29.53 | S26: 39.3 | T26: 29.53 | V26: 0
C27: -22 | D27: =IF(RTD("cqg.rtd",,"StudyData", $D$4, "Bar",, "Close",$E$4,C27,"All",,,,"T")="","",RTD("cqg.rtd",,"StudyData", $D$4, "Bar",, "Close",$E$4,C27,"All",,,,"T")*100) -> 29.05 | G27: 40.1 | H27: 29.05 | J27: 2 | O27: -22 | P27: =IF(RTD("cqg.rtd",,"StudyData", $P$4, "Bar",, "Close",$Q$4,O27,"All",,,,"T")="","",RTD("cqg.rtd",,"StudyData", $P$4, "Bar",, "Close",$Q$4,O27,"All",,,,"T")*100) -> 26.74 | S27: 40.1 | T27: 26.74 | V27: 1
C28: -23 | D28: =IF(RTD("cqg.rtd",,"StudyData", $D$4, "Bar",, "Close",$E$4,C28,"All",,,,"T")="","",RTD("cqg.rtd",,"StudyData", $D$4, "Bar",, "Close",$E$4,C28,"All",,,,"T")*100) -> 28.31 | G28: 40.9 | H28: 28.31 | J28: 0 | O28: -23 | P28: =IF(RTD("cqg.rtd",,"StudyData", $P$4, "Bar",, "Close",$Q$4,O28,"All",,,,"T")="","",RTD("cqg.rtd",,"StudyData", $P$4, "Bar",, "Close",$Q$4,O28,"All",,,,"T")*100) -> 28.12 | S28: 40.9 | T28: 28.12 | V28: 2
C29: -24 | D29: =IF(RTD("cqg.rtd",,"StudyData", $D$4, "Bar",, "Close",$E$4,C29,"All",,,,"T")="","",RTD("cqg.rtd",,"StudyData", $D$4, "Bar",, "Close",$E$4,C29,"All",,,,"T")*100) -> 27.72 | G29: 41.7 | H29: 27.72 | J29: 2 | O29: -24 | P29: =IF(RTD("cqg.rtd",,"StudyData", $P$4, "Bar",, "Close",$Q$4,O29,"All",,,,"T")="","",RTD("cqg.rtd",,"StudyData", $P$4, "Bar",, "Close",$Q$4,O29,"All",,,,"T")*100) -> 27.97 | S29: 41.7 | T29: 27.97 | V29: 2
C30: -25 | D30: =IF(RTD("cqg.rtd",,"StudyData", $D$4, "Bar",, "Close",$E$4,C30,"All",,,,"T")="","",RTD("cqg.rtd",,"StudyData", $D$4, "Bar",, "Close",$E$4,C30,"All",,,,"T")*100) -> 30.02 | G30: 42.5 | H30: 30.02 | J30: 1 | O30: -25 | P30: =IF(RTD("cqg.rtd",,"StudyData", $P$4, "Bar",, "Close",$Q$4,O30,"All",,,,"T")="","",RTD("cqg.rtd",,"StudyData", $P$4, "Bar",, "Close",$Q$4,O30,"All",,,,"T")*100) -> 27.24 | S30: 42.5 | T30: 27.24 | V30: 0
C31: -26 | D31: =IF(RTD("cqg.rtd",,"StudyData", $D$4, "Bar",, "Close",$E$4,C31,"All",,,,"T")="","",RTD("cqg.rtd",,"StudyData", $D$4, "Bar",, "Close",$E$4,C31,"All",,,,"T")*100) -> 28.02 | G31: 43.3 | H31: 28.02 | J31: 1 | O31: -26 | P31: =IF(RTD("cqg.rtd",,"StudyData", $P$4, "Bar",, "Close",$Q$4,O31,"All",,,,"T")="","",RTD("cqg.rtd",,"StudyData", $P$4, "Bar",, "Close",$Q$4,O31,"All",,,,"T")*100) -> 27.67 | S31: 43.3 | T31: 27.67 | V31: 0
C32: -27 | D32: =IF(RTD("cqg.rtd",,"StudyData", $D$4, "Bar",, "Close",$E$4,C32,"All",,,,"T")="","",RTD("cqg.rtd",,"StudyData", $D$4, "Bar",, "Close",$E$4,C32,"All",,,,"T")*100) -> 27.77 | G32: 44.1 | H32: 27.77 | J32: 2 | O32: -27 | P32: =IF(RTD("cqg.rtd",,"StudyData", $P$4, "Bar",, "Close",$Q$4,O32,"All",,,,"T")="","",RTD("cqg.rtd",,"StudyData", $P$4, "Bar",, "Close",$Q$4,O32,"All",,,,"T")*100) -> 27.74 | S32: 44.1 | T32: 27.74 | V32: 0
C33: -28 | D33: =IF(RTD("cqg.rtd",,"StudyData", $D$4, "Bar",, "Close",$E$4,C33,"All",,,,"T")="","",RTD("cqg.rtd",,"StudyData", $D$4, "Bar",, "Close",$E$4,C33,"All",,,,"T")*100) -> 28.11 | G33: 44.9 | H33: 28.11 | J33: 0 | O33: -28 | P33: =IF(RTD("cqg.rtd",,"StudyData", $P$4, "Bar",, "Close",$Q$4,O33,"All",,,,"T")="","",RTD("cqg.rtd",,"StudyData", $P$4, "Bar",, "Close",$Q$4,O33,"All",,,,"T")*100) -> 28.25 | S33: 44.9 | T33: 28.25 | V33: 1
C34: -29 | D34: =IF(RTD("cqg.rtd",,"StudyData", $D$4, "Bar",, "Close",$E$4,C34,"All",,,,"T")="","",RTD("cqg.rtd",,"StudyData", $D$4, "Bar",, "Close",$E$4,C34,"All",,,,"T")*100) -> 27.9 | G34: 45.7 | H34: 27.9 | J34: 1 | O34: -29 | P34: =IF(RTD("cqg.rtd",,"StudyData", $P$4, "Bar",, "Close",$Q$4,O34,"All",,,,"T")="","",RTD("cqg.rtd",,"StudyData", $P$4, "Bar",, "Close",$Q$4,O34,"All",,,,"T")*100) -> 28.4 | S34: 45.7 | T34: 28.4 | V34: 0
C35: -30 | D35: =IF(RTD("cqg.rtd",,"StudyData", $D$4, "Bar",, "Close",$E$4,C35,"All",,,,"T")="","",RTD("cqg.rtd",,"StudyData", $D$4, "Bar",, "Close",$E$4,C35,"All",,,,"T")*100) -> 27.68 | G35: 46.5 | H35: 27.68 | J35: 0 | O35: -30 | P35: =IF(RTD("cqg.rtd",,"StudyData", $P$4, "Bar",, "Close",$Q$4,O35,"All",,,,"T")="","",RTD("cqg.rtd",,"StudyData", $P$4, "Bar",, "Close",$Q$4,O35,"All",,,,"T")*100) -> 28.59 | S35: 46.5 | T35: 28.59 | V35: 0
C36: -31 | D36: =IF(RTD("cqg.rtd",,"StudyData", $D$4, "Bar",, "Close",$E$4,C36,"All",,,,"T")="","",RTD("cqg.rtd",,"StudyData", $D$4, "Bar",, "Close",$E$4,C36,"All",,,,"T")*100) -> 28.95 | G36: 47.3 | H36: 28.95 | J36: 3 | O36: -31 | P36: =IF(RTD("cqg.rtd",,"StudyData", $P$4, "Bar",, "Close",$Q$4,O36,"All",,,,"T")="","",RTD("cqg.rtd",,"StudyData", $P$4, "Bar",, "Close",$Q$4,O36,"All",,,,"T")*100) -> 28.34 | S36: 47.3 | T36: 28.34 | V36: 1
C37: -32 | D37: =IF(RTD("cqg.rtd",,"StudyData", $D$4, "Bar",, "Close",$E$4,C37,"All",,,,"T")="","",RTD("cqg.rtd",,"StudyData", $D$4, "Bar",, "Close",$E$4,C37,"All",,,,"T")*100) -> 29.17 | G37: 48.1 | H37: 29.17 | J37: 1 | O37: -32 | P37: =IF(RTD("cqg.rtd",,"StudyData", $P$4, "Bar",, "Close",$Q$4,O37,"All",,,,"T")="","",RTD("cqg.rtd",,"StudyData", $P$4, "Bar",, "Close",$Q$4,O37,"All",,,,"T")*100) -> 29.34 | S37: 48.1 | T37: 29.34 | V37: 0
C38: -33 | D38: =IF(RTD("cqg.rtd",,"StudyData", $D$4, "Bar",, "Close",$E$4,C38,"All",,,,"T")="","",RTD("cqg.rtd",,"StudyData", $D$4, "Bar",, "Close",$E$4,C38,"All",,,,"T")*100) -> 30.01 | G38: 48.9 | H38: 30.01 | J38: 0 | O38: -33 | P38: =IF(RTD("cqg.rtd",,"StudyData", $P$4, "Bar",, "Close",$Q$4,O38,"All",,,,"T")="","",RTD("cqg.rtd",,"StudyData", $P$4, "Bar",, "Close",$Q$4,O38,"All",,,,"T")*100) -> 30.41 | S38: 48.9 | T38: 30.41 | V38: 1
C39: -34 | D39: =IF(RTD("cqg.rtd",,"StudyData", $D$4, "Bar",, "Close",$E$4,C39,"All",,,,"T")="","",RTD("cqg.rtd",,"StudyData", $D$4, "Bar",, "Close",$E$4,C39,"All",,,,"T")*100) -> 29.33 | G39: 49.7 | H39: 29.33 | J39: 1 | O39: -34 | P39: =IF(RTD("cqg.rtd",,"StudyData", $P$4, "Bar",, "Close",$Q$4,O39,"All",,,,"T")="","",RTD("cqg.rtd",,"StudyData", $P$4, "Bar",, "Close",$Q$4,O39,"All",,,,"T")*100) -> 30.33 | S39: 49.7 | T39: 30.33 | V39: 0
C40: -35 | D40: =IF(RTD("cqg.rtd",,"StudyData", $D$4, "Bar",, "Close",$E$4,C40,"All",,,,"T")="","",RTD("cqg.rtd",,"StudyData", $D$4, "Bar",, "Close",$E$4,C40,"All",,,,"T")*100) -> 30.36 | E40: =RTD("cqg.rtd",,"StudyData", $D$4, "Bar",, "Time",$E$4,C40,,,,,"T") -> 2017-07-07 | G40: 50.5 | H40: 30.36 | J40: 0 | O40: -35 | P40: =IF(RTD("cqg.rtd",,"StudyData", $P$4, "Bar",, "Close",$Q$4,O40,"All",,,,"T")="","",RTD("cqg.rtd",,"StudyData", $P$4, "Bar",, "Close",$Q$4,O40,"All",,,,"T")*100) -> 30.18 | Q40: =RTD("cqg.rtd",,"StudyData", $D$4, "Bar",, "Time",$E$4,O40,,,,,"T") -> 2017-07-07 | S40: 50.5 | T40: 30.18 | V40: 1
C41: -36 | D41: =IF(RTD("cqg.rtd",,"StudyData", $D$4, "Bar",, "Close",$E$4,C41,"All",,,,"T")="","",RTD("cqg.rtd",,"StudyData", $D$4, "Bar",, "Close",$E$4,C41,"All",,,,"T")*100) -> 32.18 | H41: 32.18 | O41: -36 | P41: =IF(RTD("cqg.rtd",,"StudyData", $P$4, "Bar",, "Close",$Q$4,O41,"All",,,,"T")="","",RTD("cqg.rtd",,"StudyData", $P$4, "Bar",, "Close",$Q$4,O41,"All",,,,"T")*100) -> 26.97 | T41: 26.97
C42: -37 | D42: =IF(RTD("cqg.rtd",,"StudyData", $D$4, "Bar",, "Close",$E$4,C42,"All",,,,"T")="","",RTD("cqg.rtd",,"StudyData", $D$4, "Bar",, "Close",$E$4,C42,"All",,,,"T")*100) -> 30.67 | H42: 30.67 | O42: -37 | P42: =IF(RTD("cqg.rtd",,"StudyData", $P$4, "Bar",, "Close",$Q$4,O42,"All",,,,"T")="","",RTD("cqg.rtd",,"StudyData", $P$4, "Bar",, "Close",$Q$4,O42,"All",,,,"T")*100) -> 29.23 | T42: 29.23
C43: -38 | D43: =IF(RTD("cqg.rtd",,"StudyData", $D$4, "Bar",, "Close",$E$4,C43,"All",,,,"T")="","",RTD("cqg.rtd",,"StudyData", $D$4, "Bar",, "Close",$E$4,C43,"All",,,,"T")*100) -> 28.68 | H43: 28.68 | O43: -38 | P43: =IF(RTD("cqg.rtd",,"StudyData", $P$4, "Bar",, "Close",$Q$4,O43,"All",,,,"T")="","",RTD("cqg.rtd",,"StudyData", $P$4, "Bar",, "Close",$Q$4,O43,"All",,,,"T")*100) -> 27.37 | T43: 27.37
C44: -39 | D44: =IF(RTD("cqg.rtd",,"StudyData", $D$4, "Bar",, "Close",$E$4,C44,"All",,,,"T")="","",RTD("cqg.rtd",,"StudyData", $D$4, "Bar",, "Close",$E$4,C44,"All",,,,"T")*100) -> 27.01 | H44: 27.01 | O44: -39 | P44: =IF(RTD("cqg.rtd",,"StudyData", $P$4, "Bar",, "Close",$Q$4,O44,"All",,,,"T")="","",RTD("cqg.rtd",,"StudyData", $P$4, "Bar",, "Close",$Q$4,O44,"All",,,,"T")*100) -> 29.17 | T44: 29.17
C45: -40 | D45: =IF(RTD("cqg.rtd",,"StudyData", $D$4, "Bar",, "Close",$E$4,C45,"All",,,,"T")="","",RTD("cqg.rtd",,"StudyData", $D$4, "Bar",, "Close",$E$4,C45,"All",,,,"T")*100) -> 30.32 | H45: 30.32 | O45: -40 | P45: =IF(RTD("cqg.rtd",,"StudyData", $P$4, "Bar",, "Close",$Q$4,O45,"All",,,,"T")="","",RTD("cqg.rtd",,"StudyData", $P$4, "Bar",, "Close",$Q$4,O45,"All",,,,"T")*100) -> 27.58 | T45: 27.58
C46: -41 | D46: =IF(RTD("cqg.rtd",,"StudyData", $D$4, "Bar",, "Close",$E$4,C46,"All",,,,"T")="","",RTD("cqg.rtd",,"StudyData", $D$4, "Bar",, "Close",$E$4,C46,"All",,,,"T")*100) -> 29.03 | H46: 29.03 | O46: -41 | P46: =IF(RTD("cqg.rtd",,"StudyData", $P$4, "Bar",, "Close",$Q$4,O46,"All",,,,"T")="","",RTD("cqg.rtd",,"StudyData", $P$4, "Bar",, "Close",$Q$4,O46,"All",,,,"T")*100) -> 30.14 | T46: 30.14
C47: -42 | D47: =IF(RTD("cqg.rtd",,"StudyData", $D$4, "Bar",, "Close",$E$4,C47,"All",,,,"T")="","",RTD("cqg.rtd",,"StudyData", $D$4, "Bar",, "Close",$E$4,C47,"All",,,,"T")*100) -> 29.64 | H47: 29.64 | O47: -42 | P47: =IF(RTD("cqg.rtd",,"StudyData", $P$4, "Bar",, "Close",$Q$4,O47,"All",,,,"T")="","",RTD("cqg.rtd",,"StudyData", $P$4, "Bar",, "Close",$Q$4,O47,"All",,,,"T")*100) -> 30.49 | T47: 30.49
C48: -43 | D48: =IF(RTD("cqg.rtd",,"StudyData", $D$4, "Bar",, "Close",$E$4,C48,"All",,,,"T")="","",RTD("cqg.rtd",,"StudyData", $D$4, "Bar",, "Close",$E$4,C48,"All",,,,"T")*100) -> 28.6 | H48: 28.6 | O48: -43 | P48: =IF(RTD("cqg.rtd",,"StudyData", $P$4, "Bar",, "Close",$Q$4,O48,"All",,,,"T")="","",RTD("cqg.rtd",,"StudyData", $P$4, "Bar",, "Close",$Q$4,O48,"All",,,,"T")*100) -> 30.92 | T48: 30.92
C49: -44 | D49: =IF(RTD("cqg.rtd",,"StudyData", $D$4, "Bar",, "Close",$E$4,C49,"All",,,,"T")="","",RTD("cqg.rtd",,"StudyData", $D$4, "Bar",, "Close",$E$4,C49,"All",,,,"T")*100) -> 30.39 | H49: 30.39 | O49: -44 | P49: =IF(RTD("cqg.rtd",,"StudyData", $P$4, "Bar",, "Close",$Q$4,O49,"All",,,,"T")="","",RTD("cqg.rtd",,"StudyData", $P$4, "Bar",, "Close",$Q$4,O49,"All",,,,"T")*100) -> 30.75 | T49: 30.75
C50: -45 | D50: =IF(RTD("cqg.rtd",,"StudyData", $D$4, "Bar",, "Close",$E$4,C50,"All",,,,"T")="","",RTD("cqg.rtd",,"StudyData", $D$4, "Bar",, "Close",$E$4,C50,"All",,,,"T")*100) -> 30.05 | H50: 30.05 | O50: -45 | P50: =IF(RTD("cqg.rtd",,"StudyData", $P$4, "Bar",, "Close",$Q$4,O50,"All",,,,"T")="","",RTD("cqg.rtd",,"StudyData", $P$4, "Bar",, "Close",$Q$4,O50,"All",,,,"T")*100) -> 30.12 | T50: 30.12
C51: -46 | D51: =IF(RTD("cqg.rtd",,"StudyData", $D$4, "Bar",, "Close",$E$4,C51,"All",,,,"T")="","",RTD("cqg.rtd",,"StudyData", $D$4, "Bar",, "Close",$E$4,C51,"All",,,,"T")*100) -> 30.03 | H51: 30.03 | O51: -46 | P51: =IF(RTD("cqg.rtd",,"StudyData", $P$4, "Bar",, "Close",$Q$4,O51,"All",,,,"T")="","",RTD("cqg.rtd",,"StudyData", $P$4, "Bar",, "Close",$Q$4,O51,"All",,,,"T")*100) -> 30.57 | T51: 30.57
C52: -47 | D52: =IF(RTD("cqg.rtd",,"StudyData", $D$4, "Bar",, "Close",$E$4,C52,"All",,,,"T")="","",RTD("cqg.rtd",,"StudyData", $D$4, "Bar",, "Close",$E$4,C52,"All",,,,"T")*100) -> 29.18 | H52: 29.18 | O52: -47 | P52: =IF(RTD("cqg.rtd",,"StudyData", $P$4, "Bar",, "Close",$Q$4,O52,"All",,,,"T")="","",RTD("cqg.rtd",,"StudyData", $P$4, "Bar",, "Close",$Q$4,O52,"All",,,,"T")*100) -> 28.66 | T52: 28.66
C53: -48 | D53: =IF(RTD("cqg.rtd",,"StudyData", $D$4, "Bar",, "Close",$E$4,C53,"All",,,,"T")="","",RTD("cqg.rtd",,"StudyData", $D$4, "Bar",, "Close",$E$4,C53,"All",,,,"T")*100) -> 27.7 | H53: 27.7 | O53: -48 | P53: =IF(RTD("cqg.rtd",,"StudyData", $P$4, "Bar",, "Close",$Q$4,O53,"All",,,,"T")="","",RTD("cqg.rtd",,"StudyData", $P$4, "Bar",, "Close",$Q$4,O53,"All",,,,"T")*100) -> 27.36 | T53: 27.36
C54: -49 | D54: =IF(RTD("cqg.rtd",,"StudyData", $D$4, "Bar",, "Close",$E$4,C54,"All",,,,"T")="","",RTD("cqg.rtd",,"StudyData", $D$4, "Bar",, "Close",$E$4,C54,"All",,,,"T")*100) -> 27.54 | H54: 27.54 | O54: -49 | P54: =IF(RTD("cqg.rtd",,"StudyData", $P$4, "Bar",, "Close",$Q$4,O54,"All",,,,"T")="","",RTD("cqg.rtd",,"StudyData", $P$4, "Bar",, "Close",$Q$4,O54,"All",,,,"T")*100) -> 26.77 | T54: 26.77
C55: -50 | D55: =IF(RTD("cqg.rtd",,"StudyData", $D$4, "Bar",, "Close",$E$4,C55,"All",,,,"T")="","",RTD("cqg.rtd",,"StudyData", $D$4, "Bar",, "Close",$E$4,C55,"All",,,,"T")*100) -> 28.67 | H55: 28.67 | O55: -50 | P55: =IF(RTD("cqg.rtd",,"StudyData", $P$4, "Bar",, "Close",$Q$4,O55,"All",,,,"T")="","",RTD("cqg.rtd",,"StudyData", $P$4, "Bar",, "Close",$Q$4,O55,"All",,,,"T")*100) -> 28.21 | T55: 28.21
C56: -51 | D56: =IF(RTD("cqg.rtd",,"StudyData", $D$4, "Bar",, "Close",$E$4,C56,"All",,,,"T")="","",RTD("cqg.rtd",,"StudyData", $D$4, "Bar",, "Close",$E$4,C56,"All",,,,"T")*100) -> 29.08 | H56: 29.08 | O56: -51 | P56: =IF(RTD("cqg.rtd",,"StudyData", $P$4, "Bar",, "Close",$Q$4,O56,"All",,,,"T")="","",RTD("cqg.rtd",,"StudyData", $P$4, "Bar",, "Close",$Q$4,O56,"All",,,,"T")*100) -> 30.04 | T56: 30.04
C57: -52 | D57: =IF(RTD("cqg.rtd",,"StudyData", $D$4, "Bar",, "Close",$E$4,C57,"All",,,,"T")="","",RTD("cqg.rtd",,"StudyData", $D$4, "Bar",, "Close",$E$4,C57,"All",,,,"T")*100) -> 29.09 | H57: 29.09 | O57: -52 | P57: =IF(RTD("cqg.rtd",,"StudyData", $P$4, "Bar",, "Close",$Q$4,O57,"All",,,,"T")="","",RTD("cqg.rtd",,"StudyData", $P$4, "Bar",, "Close",$Q$4,O57,"All",,,,"T")*100) -> 30.47 | T57: 30.47
C58: -53 | D58: =IF(RTD("cqg.rtd",,"StudyData", $D$4, "Bar",, "Close",$E$4,C58,"All",,,,"T")="","",RTD("cqg.rtd",,"StudyData", $D$4, "Bar",, "Close",$E$4,C58,"All",,,,"T")*100) -> 29.29 | H58: 29.29 | O58: -53 | P58: =IF(RTD("cqg.rtd",,"StudyData", $P$4, "Bar",, "Close",$Q$4,O58,"All",,,,"T")="","",RTD("cqg.rtd",,"StudyData", $P$4, "Bar",, "Close",$Q$4,O58,"All",,,,"T")*100) -> 29.74 | T58: 29.74
C59: -54 | D59: =IF(RTD("cqg.rtd",,"StudyData", $D$4, "Bar",, "Close",$E$4,C59,"All",,,,"T")="","",RTD("cqg.rtd",,"StudyData", $D$4, "Bar",, "Close",$E$4,C59,"All",,,,"T")*100) -> 30.01 | H59: 30.01 | O59: -54 | P59: =IF(RTD("cqg.rtd",,"StudyData", $P$4, "Bar",, "Close",$Q$4,O59,"All",,,,"T")="","",RTD("cqg.rtd",,"StudyData", $P$4, "Bar",, "Close",$Q$4,O59,"All",,,,"T")*100) -> 29.93 | T59: 29.93
C60: -55 | D60: =IF(RTD("cqg.rtd",,"StudyData", $D$4, "Bar",, "Close",$E$4,C60,"All",,,,"T")="","",RTD("cqg.rtd",,"StudyData", $D$4, "Bar",, "Close",$E$4,C60,"All",,,,"T")*100) -> 30.9 | H60: 30.9 | O60: -55 | P60: =IF(RTD("cqg.rtd",,"StudyData", $P$4, "Bar",, "Close",$Q$4,O60,"All",,,,"T")="","",RTD("cqg.rtd",,"StudyData", $P$4, "Bar",, "Close",$Q$4,O60,"All",,,,"T")*100) -> 30.78 | T60: 30.78
C61: -56 | D61: =IF(RTD("cqg.rtd",,"StudyData", $D$4, "Bar",, "Close",$E$4,C61,"All",,,,"T")="","",RTD("cqg.rtd",,"StudyData", $D$4, "Bar",, "Close",$E$4,C61,"All",,,,"T")*100) -> 30.49 | H61: 30.49 | O61: -56 | P61: =IF(RTD("cqg.rtd",,"StudyData", $P$4, "Bar",, "Close",$Q$4,O61,"All",,,,"T")="","",RTD("cqg.rtd",,"StudyData", $P$4, "Bar",, "Close",$Q$4,O61,"All",,,,"T")*100) -> 31.8 | T61: 31.8
C62: -57 | D62: =IF(RTD("cqg.rtd",,"StudyData", $D$4, "Bar",, "Close",$E$4,C62,"All",,,,"T")="","",RTD("cqg.rtd",,"StudyData", $D$4, "Bar",, "Close",$E$4,C62,"All",,,,"T")*100) -> 28.18 | H62: 28.18 | O62: -57 | P62: =IF(RTD("cqg.rtd",,"StudyData", $P$4, "Bar",, "Close",$Q$4,O62,"All",,,,"T")="","",RTD("cqg.rtd",,"StudyData", $P$4, "Bar",, "Close",$Q$4,O62,"All",,,,"T")*100) -> 29.57 | T62: 29.57
C63: -58 | D63: =IF(RTD("cqg.rtd",,"StudyData", $D$4, "Bar",, "Close",$E$4,C63,"All",,,,"T")="","",RTD("cqg.rtd",,"StudyData", $D$4, "Bar",, "Close",$E$4,C63,"All",,,,"T")*100) -> 29.63 | H63: 29.63 | O63: -58 | P63: =IF(RTD("cqg.rtd",,"StudyData", $P$4, "Bar",, "Close",$Q$4,O63,"All",,,,"T")="","",RTD("cqg.rtd",,"StudyData", $P$4, "Bar",, "Close",$Q$4,O63,"All",,,,"T")*100) -> 29.47 | T63: 29.47
C64: -59 | D64: =IF(RTD("cqg.rtd",,"StudyData", $D$4, "Bar",, "Close",$E$4,C64,"All",,,,"T")="","",RTD("cqg.rtd",,"StudyData", $D$4, "Bar",, "Close",$E$4,C64,"All",,,,"T")*100) -> 28.21 | H64: 28.21 | O64: -59 | P64: =IF(RTD("cqg.rtd",,"StudyData", $P$4, "Bar",, "Close",$Q$4,O64,"All",,,,"T")="","",RTD("cqg.rtd",,"StudyData", $P$4, "Bar",, "Close",$Q$4,O64,"All",,,,"T")*100) -> 30.03 | T64: 30.03
C65: -60 | D65: =IF(RTD("cqg.rtd",,"StudyData", $D$4, "Bar",, "Close",$E$4,C65,"All",,,,"T")="","",RTD("cqg.rtd",,"StudyData", $D$4, "Bar",, "Close",$E$4,C65,"All",,,,"T")*100) -> 28.8 | H65: 28.8 | O65: -60 | P65: =IF(RTD("cqg.rtd",,"StudyData", $P$4, "Bar",, "Close",$Q$4,O65,"All",,,,"T")="","",RTD("cqg.rtd",,"StudyData", $P$4, "Bar",, "Close",$Q$4,O65,"All",,,,"T")*100) -> 26.77 | T65: 26.77
C66: -61 | D66: =IF(RTD("cqg.rtd",,"StudyData", $D$4, "Bar",, "Close",$E$4,C66,"All",,,,"T")="","",RTD("cqg.rtd",,"StudyData", $D$4, "Bar",, "Close",$E$4,C66,"All",,,,"T")*100) -> 29.67 | H66: 29.67 | O66: -61 | P66: =IF(RTD("cqg.rtd",,"StudyData", $P$4, "Bar",, "Close",$Q$4,O66,"All",,,,"T")="","",RTD("cqg.rtd",,"StudyData", $P$4, "Bar",, "Close",$Q$4,O66,"All",,,,"T")*100) -> 27.38 | T66: 27.38
C67: -62 | D67: =IF(RTD("cqg.rtd",,"StudyData", $D$4, "Bar",, "Close",$E$4,C67,"All",,,,"T")="","",RTD("cqg.rtd",,"StudyData", $D$4, "Bar",, "Close",$E$4,C67,"All",,,,"T")*100) -> 27.26 | H67: 27.26 | O67: -62 | P67: =IF(RTD("cqg.rtd",,"StudyData", $P$4, "Bar",, "Close",$Q$4,O67,"All",,,,"T")="","",RTD("cqg.rtd",,"StudyData", $P$4, "Bar",, "Close",$Q$4,O67,"All",,,,"T")*100) -> 26.59 | T67: 26.59
C68: -63 | D68: =IF(RTD("cqg.rtd",,"StudyData", $D$4, "Bar",, "Close",$E$4,C68,"All",,,,"T")="","",RTD("cqg.rtd",,"StudyData", $D$4, "Bar",, "Close",$E$4,C68,"All",,,,"T")*100) -> 28.25 | H68: 28.25 | O68: -63 | P68: =IF(RTD("cqg.rtd",,"StudyData", $P$4, "Bar",, "Close",$Q$4,O68,"All",,,,"T")="","",RTD("cqg.rtd",,"StudyData", $P$4, "Bar",, "Close",$Q$4,O68,"All",,,,"T")*100) -> 26.99 | T68: 26.99
C69: -64 | D69: =IF(RTD("cqg.rtd",,"StudyData", $D$4, "Bar",, "Close",$E$4,C69,"All",,,,"T")="","",RTD("cqg.rtd",,"StudyData", $D$4, "Bar",, "Close",$E$4,C69,"All",,,,"T")*100) -> 30.75 | H69: 30.75 | O69: -64 | P69: =IF(RTD("cqg.rtd",,"StudyData", $P$4, "Bar",, "Close",$Q$4,O69,"All",,,,"T")="","",RTD("cqg.rtd",,"StudyData", $P$4, "Bar",, "Close",$Q$4,O69,"All",,,,"T")*100) -> 26.91 | T69: 26.91
C70: -65 | D70: =IF(RTD("cqg.rtd",,"StudyData", $D$4, "Bar",, "Close",$E$4,C70,"All",,,,"T")="","",RTD("cqg.rtd",,"StudyData", $D$4, "Bar",, "Close",$E$4,C70,"All",,,,"T")*100) -> 28.85 | H70: =D70 -> 28.85 | O70: -65 | P70: =IF(RTD("cqg.rtd",,"StudyData", $P$4, "Bar",, "Close",$Q$4,O70,"All",,,,"T")="","",RTD("cqg.rtd",,"StudyData", $P$4, "Bar",, "Close",$Q$4,O70,"All",,,,"T")*100) -> 27.89 | T70: =P70 -> 27.89
C71: =C70-1 -> -66 | D71: =IF(RTD("cqg.rtd",,"StudyData", $D$4, "Bar",, "Close",$E$4,C71,"All",,,,"T")="","",RTD("cqg.rtd",,"StudyData", $D$4, "Bar",, "Close",$E$4,C71,"All",,,,"T")*100) -> 28.87 | H71: 28.87 | O71: =O70-1 -> -66 | P71: =IF(RTD("cqg.rtd",,"StudyData", $P$4, "Bar",, "Close",$Q$4,O71,"All",,,,"T")="","",RTD("cqg.rtd",,"StudyData", $P$4, "Bar",, "Close",$Q$4,O71,"All",,,,"T")*100) -> 28.65 | T71: 28.65
C72: -67 | D72: =IF(RTD("cqg.rtd",,"StudyData", $D$4, "Bar",, "Close",$E$4,C72,"All",,,,"T")="","",RTD("cqg.rtd",,"StudyData", $D$4, "Bar",, "Close",$E$4,C72,"All",,,,"T")*100) -> 29.7 | H72: 29.7 | O72: -67 | P72: =IF(RTD("cqg.rtd",,"StudyData", $P$4, "Bar",, "Close",$Q$4,O72,"All",,,,"T")="","",RTD("cqg.rtd",,"StudyData", $P$4, "Bar",, "Close",$Q$4,O72,"All",,,,"T")*100) -> 28.61 | T72: 28.61
C73: -68 | D73: =IF(RTD("cqg.rtd",,"StudyData", $D$4, "Bar",, "Close",$E$4,C73,"All",,,,"T")="","",RTD("cqg.rtd",,"StudyData", $D$4, "Bar",, "Close",$E$4,C73,"All",,,,"T")*100) -> 30.57 | E73: =RTD("cqg.rtd",,"StudyData", $D$4, "Bar",, "Time",$E$4,C73,,,,,"T") -> 2017-05-19 | H73: 30.57 | O73: -68 | P73: =IF(RTD("cqg.rtd",,"StudyData", $P$4, "Bar",, "Close",$Q$4,O73,"All",,,,"T")="","",RTD("cqg.rtd",,"StudyData", $P$4, "Bar",, "Close",$Q$4,O73,"All",,,,"T")*100) -> 30.8 | Q73: =RTD("cqg.rtd",,"StudyData", $D$4, "Bar",, "Time",$E$4,O73,,,,,"T") -> 2017-05-19 | T73: 30.8
C74: -69 | D74: =IF(RTD("cqg.rtd",,"StudyData", $D$4, "Bar",, "Close",$E$4,C74,"All",,,,"T")="","",RTD("cqg.rtd",,"StudyData", $D$4, "Bar",, "Close",$E$4,C74,"All",,,,"T")*100) -> 31.8 | H74: 31.8 | O74: -69 | P74: =IF(RTD("cqg.rtd",,"StudyData", $P$4, "Bar",, "Close",$Q$4,O74,"All",,,,"T")="","",RTD("cqg.rtd",,"StudyData", $P$4, "Bar",, "Close",$Q$4,O74,"All",,,,"T")*100) -> 30.56 | T74: 30.56
C75: -70 | D75: =IF(RTD("cqg.rtd",,"StudyData", $D$4, "Bar",, "Close",$E$4,C75,"All",,,,"T")="","",RTD("cqg.rtd",,"StudyData", $D$4, "Bar",, "Close",$E$4,C75,"All",,,,"T")*100) -> 31.69 | H75: 31.69 | O75: -70 | P75: =IF(RTD("cqg.rtd",,"StudyData", $P$4, "Bar",, "Close",$Q$4,O75,"All",,,,"T")="","",RTD("cqg.rtd",,"StudyData", $P$4, "Bar",, "Close",$Q$4,O75,"All",,,,"T")*100) -> 31.14 | T75: 31.14
C76: -71 | D76: =IF(RTD("cqg.rtd",,"StudyData", $D$4, "Bar",, "Close",$E$4,C76,"All",,,,"T")="","",RTD("cqg.rtd",,"StudyData", $D$4, "Bar",, "Close",$E$4,C76,"All",,,,"T")*100) -> 31.06 | H76: 31.06 | O76: -71 | P76: =IF(RTD("cqg.rtd",,"StudyData", $P$4, "Bar",, "Close",$Q$4,O76,"All",,,,"T")="","",RTD("cqg.rtd",,"StudyData", $P$4, "Bar",, "Close",$Q$4,O76,"All",,,,"T")*100) -> 30.75 | T76: 30.75
C77: -72 | D77: =IF(RTD("cqg.rtd",,"StudyData", $D$4, "Bar",, "Close",$E$4,C77,"All",,,,"T")="","",RTD("cqg.rtd",,"StudyData", $D$4, "Bar",, "Close",$E$4,C77,"All",,,,"T")*100) -> 30.85 | H77: 30.85 | O77: -72 | P77: =IF(RTD("cqg.rtd",,"StudyData", $P$4, "Bar",, "Close",$Q$4,O77,"All",,,,"T")="","",RTD("cqg.rtd",,"StudyData", $P$4, "Bar",, "Close",$Q$4,O77,"All",,,,"T")*100) -> 30.51 | T77: 30.51
C78: -73 | D78: =IF(RTD("cqg.rtd",,"StudyData", $D$4, "Bar",, "Close",$E$4,C78,"All",,,,"T")="","",RTD("cqg.rtd",,"StudyData", $D$4, "Bar",, "Close",$E$4,C78,"All",,,,"T")*100) -> 31.02 | H78: 31.02 | O78: -73 | P78: =IF(RTD("cqg.rtd",,"StudyData", $P$4, "Bar",, "Close",$Q$4,O78,"All",,,,"T")="","",RTD("cqg.rtd",,"StudyData", $P$4, "Bar",, "Close",$Q$4,O78,"All",,,,"T")*100) -> 31.64 | T78: 31.64
C79: -74 | D79: =IF(RTD("cqg.rtd",,"StudyData", $D$4, "Bar",, "Close",$E$4,C79,"All",,,,"T")="","",RTD("cqg.rtd",,"StudyData", $D$4, "Bar",, "Close",$E$4,C79,"All",,,,"T")*100) -> 31.89 | H79: 31.89 | O79: -74 | P79: =IF(RTD("cqg.rtd",,"StudyData", $P$4, "Bar",, "Close",$Q$4,O79,"All",,,,"T")="","",RTD("cqg.rtd",,"StudyData", $P$4, "Bar",, "Close",$Q$4,O79,"All",,,,"T")*100) -> 30.49 | T79: 30.49
C80: -75 | D80: =IF(RTD("cqg.rtd",,"StudyData", $D$4, "Bar",, "Close",$E$4,C80,"All",,,,"T")="","",RTD("cqg.rtd",,"StudyData", $D$4, "Bar",, "Close",$E$4,C80,"All",,,,"T")*100) -> 31.01 | H80: 31.01 | O80: -75 | P80: =IF(RTD("cqg.rtd",,"StudyData", $P$4, "Bar",, "Close",$Q$4,O80,"All",,,,"T")="","",RTD("cqg.rtd",,"StudyData", $P$4, "Bar",, "Close",$Q$4,O80,"All",,,,"T")*100) -> 31.88 | T80: 31.88
C81: -76 | D81: =IF(RTD("cqg.rtd",,"StudyData", $D$4, "Bar",, "Close",$E$4,C81,"All",,,,"T")="","",RTD("cqg.rtd",,"StudyData", $D$4, "Bar",, "Close",$E$4,C81,"All",,,,"T")*100) -> 30.39 | H81: 30.39 | O81: -76 | P81: =IF(RTD("cqg.rtd",,"StudyData", $P$4, "Bar",, "Close",$Q$4,O81,"All",,,,"T")="","",RTD("cqg.rtd",,"StudyData", $P$4, "Bar",, "Close",$Q$4,O81,"All",,,,"T")*100) -> 33.07 | T81: 33.07
C82: -77 | D82: =IF(RTD("cqg.rtd",,"StudyData", $D$4, "Bar",, "Close",$E$4,C82,"All",,,,"T")="","",RTD("cqg.rtd",,"StudyData", $D$4, "Bar",, "Close",$E$4,C82,"All",,,,"T")*100) -> 31.29 | H82: 31.29 | O82: -77 | P82: =IF(RTD("cqg.rtd",,"StudyData", $P$4, "Bar",, "Close",$Q$4,O82,"All",,,,"T")="","",RTD("cqg.rtd",,"StudyData", $P$4, "Bar",, "Close",$Q$4,O82,"All",,,,"T")*100) -> 30.89 | T82: 30.89
C83: -78 | D83: =IF(RTD("cqg.rtd",,"StudyData", $D$4, "Bar",, "Close",$E$4,C83,"All",,,,"T")="","",RTD("cqg.rtd",,"StudyData", $D$4, "Bar",, "Close",$E$4,C83,"All",,,,"T")*100) -> 30.28 | H83: 30.28 | O83: -78 | P83: =IF(RTD("cqg.rtd",,"StudyData", $P$4, "Bar",, "Close",$Q$4,O83,"All",,,,"T")="","",RTD("cqg.rtd",,"StudyData", $P$4, "Bar",, "Close",$Q$4,O83,"All",,,,"T")*100) -> 32.48 | T83: 32.48
C84: -79 | D84: =IF(RTD("cqg.rtd",,"StudyData", $D$4, "Bar",, "Close",$E$4,C84,"All",,,,"T")="","",RTD("cqg.rtd",,"StudyData", $D$4, "Bar",, "Close",$E$4,C84,"All",,,,"T")*100) -> 31.82 | H84: 31.82 | O84: -79 | P84: =IF(RTD("cqg.rtd",,"StudyData", $P$4, "Bar",, "Close",$Q$4,O84,"All",,,,"T")="","",RTD("cqg.rtd",,"StudyData", $P$4, "Bar",, "Close",$Q$4,O84,"All",,,,"T")*100) -> 31.04 | T84: 31.04
C85: -80 | D85: =IF(RTD("cqg.rtd",,"StudyData", $D$4, "Bar",, "Close",$E$4,C85,"All",,,,"T")="","",RTD("cqg.rtd",,"StudyData", $D$4, "Bar",, "Close",$E$4,C85,"All",,,,"T")*100) -> 29.67 | H85: 29.67 | O85: -80 | P85: =IF(RTD("cqg.rtd",,"StudyData", $P$4, "Bar",, "Close",$Q$4,O85,"All",,,,"T")="","",RTD("cqg.rtd",,"StudyData", $P$4, "Bar",, "Close",$Q$4,O85,"All",,,,"T")*100) -> 28.5 | T85: 28.5
C86: -81 | D86: =IF(RTD("cqg.rtd",,"StudyData", $D$4, "Bar",, "Close",$E$4,C86,"All",,,,"T")="","",RTD("cqg.rtd",,"StudyData", $D$4, "Bar",, "Close",$E$4,C86,"All",,,,"T")*100) -> 29.33 | H86: 29.33 | O86: -81 | P86: =IF(RTD("cqg.rtd",,"StudyData", $P$4, "Bar",, "Close",$Q$4,O86,"All",,,,"T")="","",RTD("cqg.rtd",,"StudyData", $P$4, "Bar",, "Close",$Q$4,O86,"All",,,,"T")*100) -> 29.38 | T86: 29.38
C87: -82 | D87: =IF(RTD("cqg.rtd",,"StudyData", $D$4, "Bar",, "Close",$E$4,C87,"All",,,,"T")="","",RTD("cqg.rtd",,"StudyData", $D$4, "Bar",, "Close",$E$4,C87,"All",,,,"T")*100) -> 28.71 | H87: 28.71 | O87: -82 | P87: =IF(RTD("cqg.rtd",,"StudyData", $P$4, "Bar",, "Close",$Q$4,O87,"All",,,,"T")="","",RTD("cqg.rtd",,"StudyData", $P$4, "Bar",, "Close",$Q$4,O87,"All",,,,"T")*100) -> 26.69 | T87: 26.69
C88: -83 | D88: =IF(RTD("cqg.rtd",,"StudyData", $D$4, "Bar",, "Close",$E$4,C88,"All",,,,"T")="","",RTD("cqg.rtd",,"StudyData", $D$4, "Bar",, "Close",$E$4,C88,"All",,,,"T")*100) -> 28.89 | H88: 28.89 | O88: -83 | P88: =IF(RTD("cqg.rtd",,"StudyData", $P$4, "Bar",, "Close",$Q$4,O88,"All",,,,"T")="","",RTD("cqg.rtd",,"StudyData", $P$4, "Bar",, "Close",$Q$4,O88,"All",,,,"T")*100) -> 25.57 | T88: 25.57
C89: -84 | D89: =IF(RTD("cqg.rtd",,"StudyData", $D$4, "Bar",, "Close",$E$4,C89,"All",,,,"T")="","",RTD("cqg.rtd",,"StudyData", $D$4, "Bar",, "Close",$E$4,C89,"All",,,,"T")*100) -> 26.23 | H89: 26.23 | O89: -84 | P89: =IF(RTD("cqg.rtd",,"StudyData", $P$4, "Bar",, "Close",$Q$4,O89,"All",,,,"T")="","",RTD("cqg.rtd",,"StudyData", $P$4, "Bar",, "Close",$Q$4,O89,"All",,,,"T")*100) -> 30.66 | T89: 30.66
C90: -85 | D90: =IF(RTD("cqg.rtd",,"StudyData", $D$4, "Bar",, "Close",$E$4,C90,"All",,,,"T")="","",RTD("cqg.rtd",,"StudyData", $D$4, "Bar",, "Close",$E$4,C90,"All",,,,"T")*100) -> 30.75 | H90: 30.75 | O90: -85 | P90: =IF(RTD("cqg.rtd",,"StudyData", $P$4, "Bar",, "Close",$Q$4,O90,"All",,,,"T")="","",RTD("cqg.rtd",,"StudyData", $P$4, "Bar",, "Close",$Q$4,O90,"All",,,,"T")*100) -> 25.62 | T90: 25.62
C91: -86 | D91: =IF(RTD("cqg.rtd",,"StudyData", $D$4, "Bar",, "Close",$E$4,C91,"All",,,,"T")="","",RTD("cqg.rtd",,"StudyData", $D$4, "Bar",, "Close",$E$4,C91,"All",,,,"T")*100) -> 27.05 | H91: 27.05 | O91: -86 | P91: =IF(RTD("cqg.rtd",,"StudyData", $P$4, "Bar",, "Close",$Q$4,O91,"All",,,,"T")="","",RTD("cqg.rtd",,"StudyData", $P$4, "Bar",, "Close",$Q$4,O91,"All",,,,"T")*100) -> 30.47 | T91: 30.47
C92: -87 | D92: =IF(RTD("cqg.rtd",,"StudyData", $D$4, "Bar",, "Close",$E$4,C92,"All",,,,"T")="","",RTD("cqg.rtd",,"StudyData", $D$4, "Bar",, "Close",$E$4,C92,"All",,,,"T")*100) -> 30.24 | H92: 30.24 | O92: -87 | P92: =IF(RTD("cqg.rtd",,"StudyData", $P$4, "Bar",, "Close",$Q$4,O92,"All",,,,"T")="","",RTD("cqg.rtd",,"StudyData", $P$4, "Bar",, "Close",$Q$4,O92,"All",,,,"T")*100) -> 29.67 | T92: 29.67
C93: -88 | D93: =IF(RTD("cqg.rtd",,"StudyData", $D$4, "Bar",, "Close",$E$4,C93,"All",,,,"T")="","",RTD("cqg.rtd",,"StudyData", $D$4, "Bar",, "Close",$E$4,C93,"All",,,,"T")*100) -> 29.51 | H93: 29.51 | O93: -88 | P93: =IF(RTD("cqg.rtd",,"StudyData", $P$4, "Bar",, "Close",$Q$4,O93,"All",,,,"T")="","",RTD("cqg.rtd",,"StudyData", $P$4, "Bar",, "Close",$Q$4,O93,"All",,,,"T")*100) -> 28.68 | T93: 28.68
C94: -89 | D94: =IF(RTD("cqg.rtd",,"StudyData", $D$4, "Bar",, "Close",$E$4,C94,"All",,,,"T")="","",RTD("cqg.rtd",,"StudyData", $D$4, "Bar",, "Close",$E$4,C94,"All",,,,"T")*100) -> 28.37 | H94: 28.37 | O94: -89 | P94: =IF(RTD("cqg.rtd",,"StudyData", $P$4, "Bar",, "Close",$Q$4,O94,"All",,,,"T")="","",RTD("cqg.rtd",,"StudyData", $P$4, "Bar",, "Close",$Q$4,O94,"All",,,,"T")*100) -> 26.8 | T94: 26.8
C95: -90 | D95: =IF(RTD("cqg.rtd",,"StudyData", $D$4, "Bar",, "Close",$E$4,C95,"All",,,,"T")="","",RTD("cqg.rtd",,"StudyData", $D$4, "Bar",, "Close",$E$4,C95,"All",,,,"T")*100) -> 28.4 | H95: 28.4 | O95: -90 | P95: =IF(RTD("cqg.rtd",,"StudyData", $P$4, "Bar",, "Close",$Q$4,O95,"All",,,,"T")="","",RTD("cqg.rtd",,"StudyData", $P$4, "Bar",, "Close",$Q$4,O95,"All",,,,"T")*100) -> 27.18 | T95: 27.18
C96: -91 | D96: =IF(RTD("cqg.rtd",,"StudyData", $D$4, "Bar",, "Close",$E$4,C96,"All",,,,"T")="","",RTD("cqg.rtd",,"StudyData", $D$4, "Bar",, "Close",$E$4,C96,"All",,,,"T")*100) -> 24.65 | H96: 24.65 | O96: -91 | P96: =IF(RTD("cqg.rtd",,"StudyData", $P$4, "Bar",, "Close",$Q$4,O96,"All",,,,"T")="","",RTD("cqg.rtd",,"StudyData", $P$4, "Bar",, "Close",$Q$4,O96,"All",,,,"T")*100) -> 27.76 | T96: 27.76
C97: -92 | D97: =IF(RTD("cqg.rtd",,"StudyData", $D$4, "Bar",, "Close",$E$4,C97,"All",,,,"T")="","",RTD("cqg.rtd",,"StudyData", $D$4, "Bar",, "Close",$E$4,C97,"All",,,,"T")*100) -> 26 | H97: 26 | O97: -92 | P97: =IF(RTD("cqg.rtd",,"StudyData", $P$4, "Bar",, "Close",$Q$4,O97,"All",,,,"T")="","",RTD("cqg.rtd",,"StudyData", $P$4, "Bar",, "Close",$Q$4,O97,"All",,,,"T")*100) -> 25.35 | T97: 25.35
C98: -93 | D98: =IF(RTD("cqg.rtd",,"StudyData", $D$4, "Bar",, "Close",$E$4,C98,"All",,,,"T")="","",RTD("cqg.rtd",,"StudyData", $D$4, "Bar",, "Close",$E$4,C98,"All",,,,"T")*100) -> 26.74 | H98: 26.74 | O98: -93 | P98: =IF(RTD("cqg.rtd",,"StudyData", $P$4, "Bar",, "Close",$Q$4,O98,"All",,,,"T")="","",RTD("cqg.rtd",,"StudyData", $P$4, "Bar",, "Close",$Q$4,O98,"All",,,,"T")*100) -> 24.24 | T98: 24.24
C99: -94 | D99: =IF(RTD("cqg.rtd",,"StudyData", $D$4, "Bar",, "Close",$E$4,C99,"All",,,,"T")="","",RTD("cqg.rtd",,"StudyData", $D$4, "Bar",, "Close",$E$4,C99,"All",,,,"T")*100) -> 27.11 | H99: 27.11 | O99: -94 | P99: =IF(RTD("cqg.rtd",,"StudyData", $P$4, "Bar",, "Close",$Q$4,O99,"All",,,,"T")="","",RTD("cqg.rtd",,"StudyData", $P$4, "Bar",, "Close",$Q$4,O99,"All",,,,"T")*100) -> 24.13 | T99: 24.13
C100: -95 | D100: =IF(RTD("cqg.rtd",,"StudyData", $D$4, "Bar",, "Close",$E$4,C100,"All",,,,"T")="","",RTD("cqg.rtd",,"StudyData", $D$4, "Bar",, "Close",$E$4,C100,"All",,,,"T")*100) -> 28.33 | H100: 28.33 | O100: -95 | P100: =IF(RTD("cqg.rtd",,"StudyData", $P$4, "Bar",, "Close",$Q$4,O100,"All",,,,"T")="","",RTD("cqg.rtd",,"StudyData", $P$4, "Bar",, "Close",$Q$4,O100,"All",,,,"T")*100) -> 24.49 | T100: 24.49
C101: -96 | D101: =IF(RTD("cqg.rtd",,"StudyData", $D$4, "Bar",, "Close",$E$4,C101,"All",,,,"T")="","",RTD("cqg.rtd",,"StudyData", $D$4, "Bar",, "Close",$E$4,C101,"All",,,,"T")*100) -> 27.38 | H101: 27.38 | O101: -96 | P101: =IF(RTD("cqg.rtd",,"StudyData", $P$4, "Bar",, "Close",$Q$4,O101,"All",,,,"T")="","",RTD("cqg.rtd",,"StudyData", $P$4, "Bar",, "Close",$Q$4,O101,"All",,,,"T")*100) -> 25.68 | T101: 25.68
C102: -97 | D102: =IF(RTD("cqg.rtd",,"StudyData", $D$4, "Bar",, "Close",$E$4,C102,"All",,,,"T")="","",RTD("cqg.rtd",,"StudyData", $D$4, "Bar",, "Close",$E$4,C102,"All",,,,"T")*100) -> 28.39 | H102: 28.39 | O102: -97 | P102: =IF(RTD("cqg.rtd",,"StudyData", $P$4, "Bar",, "Close",$Q$4,O102,"All",,,,"T")="","",RTD("cqg.rtd",,"StudyData", $P$4, "Bar",, "Close",$Q$4,O102,"All",,,,"T")*100) -> 27.16 | T102: 27.16
C103: -98 | D103: =IF(RTD("cqg.rtd",,"StudyData", $D$4, "Bar",, "Close",$E$4,C103,"All",,,,"T")="","",RTD("cqg.rtd",,"StudyData", $D$4, "Bar",, "Close",$E$4,C103,"All",,,,"T")*100) -> 27.75 | H103: 27.75 | O103: -98 | P103: =IF(RTD("cqg.rtd",,"StudyData", $P$4, "Bar",, "Close",$Q$4,O103,"All",,,,"T")="","",RTD("cqg.rtd",,"StudyData", $P$4, "Bar",, "Close",$Q$4,O103,"All",,,,"T")*100) -> 26.2 | T103: 26.2
C104: -99 | D104: =IF(RTD("cqg.rtd",,"StudyData", $D$4, "Bar",, "Close",$E$4,C104,"All",,,,"T")="","",RTD("cqg.rtd",,"StudyData", $D$4, "Bar",, "Close",$E$4,C104,"All",,,,"T")*100) -> 29.38 | E104: =RTD("cqg.rtd",,"StudyData", $D$4, "Bar",, "Time",$E$4,C104,,,,,"T") -> 2017-04-05 | H104: 29.38 | O104: -99 | P104: =IF(RTD("cqg.rtd",,"StudyData", $P$4, "Bar",, "Close",$Q$4,O104,"All",,,,"T")="","",RTD("cqg.rtd",,"StudyData", $P$4, "Bar",, "Close",$Q$4,O104,"All",,,,"T")*100) -> 25.05 | Q104: =RTD("cqg.rtd",,"StudyData", $D$4, "Bar",, "Time",$E$4,O104,,,,,"T") -> 2017-04-05 | T104: 25.05
C105: -100 | D105: =IF(RTD("cqg.rtd",,"StudyData", $D$4, "Bar",, "Close",$E$4,C105,"All",,,,"T")="","",RTD("cqg.rtd",,"StudyData", $D$4, "Bar",, "Close",$E$4,C105,"All",,,,"T")*100) -> 27.99 | H105: 27.99 | O105: -100 | P105: =IF(RTD("cqg.rtd",,"StudyData", $P$4, "Bar",, "Close",$Q$4,O105,"All",,,,"T")="","",RTD("cqg.rtd",,"StudyData", $P$4, "Bar",, "Close",$Q$4,O105,"All",,,,"T")*100) -> 27.46 | T105: 27.46
C106: -101 | D106: =IF(RTD("cqg.rtd",,"StudyData", $D$4, "Bar",, "Close",$E$4,C106,"All",,,,"T")="","",RTD("cqg.rtd",,"StudyData", $D$4, "Bar",, "Close",$E$4,C106,"All",,,,"T")*100) -> 25.87 | H106: 25.87 | O106: -101 | P106: =IF(RTD("cqg.rtd",,"StudyData", $P$4, "Bar",, "Close",$Q$4,O106,"All",,,,"T")="","",RTD("cqg.rtd",,"StudyData", $P$4, "Bar",, "Close",$Q$4,O106,"All",,,,"T")*100) -> 28.2 | T106: 28.2
C107: -102 | D107: =IF(RTD("cqg.rtd",,"StudyData", $D$4, "Bar",, "Close",$E$4,C107,"All",,,,"T")="","",RTD("cqg.rtd",,"StudyData", $D$4, "Bar",, "Close",$E$4,C107,"All",,,,"T")*100) -> 27.05 | H107: 27.05 | O107: -102 | P107: =IF(RTD("cqg.rtd",,"StudyData", $P$4, "Bar",, "Close",$Q$4,O107,"All",,,,"T")="","",RTD("cqg.rtd",,"StudyData", $P$4, "Bar",, "Close",$Q$4,O107,"All",,,,"T")*100) -> 28.23 | T107: 28.23
C108: -103 | D108: =IF(RTD("cqg.rtd",,"StudyData", $D$4, "Bar",, "Close",$E$4,C108,"All",,,,"T")="","",RTD("cqg.rtd",,"StudyData", $D$4, "Bar",, "Close",$E$4,C108,"All",,,,"T")*100) -> 28.71 | H108: 28.71 | O108: -103 | P108: =IF(RTD("cqg.rtd",,"StudyData", $P$4, "Bar",, "Close",$Q$4,O108,"All",,,,"T")="","",RTD("cqg.rtd",,"StudyData", $P$4, "Bar",, "Close",$Q$4,O108,"All",,,,"T")*100) -> 27.04 | T108: 27.04
C109: -104 | D109: =IF(RTD("cqg.rtd",,"StudyData", $D$4, "Bar",, "Close",$E$4,C109,"All",,,,"T")="","",RTD("cqg.rtd",,"StudyData", $D$4, "Bar",, "Close",$E$4,C109,"All",,,,"T")*100) -> 29.16 | H109: 29.16 | O109: -104 | P109: =IF(RTD("cqg.rtd",,"StudyData", $P$4, "Bar",, "Close",$Q$4,O109,"All",,,,"T")="","",RTD("cqg.rtd",,"StudyData", $P$4, "Bar",, "Close",$Q$4,O109,"All",,,,"T")*100) -> 28.02 | T109: 28.02
C110: -105 | D110: =IF(RTD("cqg.rtd",,"StudyData", $D$4, "Bar",, "Close",$E$4,C110,"All",,,,"T")="","",RTD("cqg.rtd",,"StudyData", $D$4, "Bar",, "Close",$E$4,C110,"All",,,,"T")*100) -> 29.22 | H110: 29.22 | O110: -105 | P110: =IF(RTD("cqg.rtd",,"StudyData", $P$4, "Bar",, "Close",$Q$4,O110,"All",,,,"T")="","",RTD("cqg.rtd",,"StudyData", $P$4, "Bar",, "Close",$Q$4,O110,"All",,,,"T")*100) -> 28.88 | T110: 28.88
C111: -106 | D111: =IF(RTD("cqg.rtd",,"StudyData", $D$4, "Bar",, "Close",$E$4,C111,"All",,,,"T")="","",RTD("cqg.rtd",,"StudyData", $D$4, "Bar",, "Close",$E$4,C111,"All",,,,"T")*100) -> 29.7 | H111: 29.7 | O111: -106 | P111: =IF(RTD("cqg.rtd",,"StudyData", $P$4, "Bar",, "Close",$Q$4,O111,"All",,,,"T")="","",RTD("cqg.rtd",,"StudyData", $P$4, "Bar",, "Close",$Q$4,O111,"All",,,,"T")*100) -> 30.69 | T111: 30.69
C112: -107 | D112: =IF(RTD("cqg.rtd",,"StudyData", $D$4, "Bar",, "Close",$E$4,C112,"All",,,,"T")="","",RTD("cqg.rtd",,"StudyData", $D$4, "Bar",, "Close",$E$4,C112,"All",,,,"T")*100) -> 30.78 | H112: 30.78 | O112: -107 | P112: =IF(RTD("cqg.rtd",,"StudyData", $P$4, "Bar",, "Close",$Q$4,O112,"All",,,,"T")="","",RTD("cqg.rtd",,"StudyData", $P$4, "Bar",, "Close",$Q$4,O112,"All",,,,"T")*100) -> 30.95 | T112: 30.95
C113: -108 | D113: =IF(RTD("cqg.rtd",,"StudyData", $D$4, "Bar",, "Close",$E$4,C113,"All",,,,"T")="","",RTD("cqg.rtd",,"StudyData", $D$4, "Bar",, "Close",$E$4,C113,"All",,,,"T")*100) -> 30.11 | H113: 30.11 | O113: -108 | P113: =IF(RTD("cqg.rtd",,"StudyData", $P$4, "Bar",, "Close",$Q$4,O113,"All",,,,"T")="","",RTD("cqg.rtd",,"StudyData", $P$4, "Bar",, "Close",$Q$4,O113,"All",,,,"T")*100) -> 30.1 | T113: 30.1
C114: -109 | D114: =IF(RTD("cqg.rtd",,"StudyData", $D$4, "Bar",, "Close",$E$4,C114,"All",,,,"T")="","",RTD("cqg.rtd",,"StudyData", $D$4, "Bar",, "Close",$E$4,C114,"All",,,,"T")*100) -> 28.87 | H114: 28.87 | O114: -109 | P114: =IF(RTD("cqg.rtd",,"StudyData", $P$4, "Bar",, "Close",$Q$4,O114,"All",,,,"T")="","",RTD("cqg.rtd",,"StudyData", $P$4, "Bar",, "Close",$Q$4,O114,"All",,,,"T")*100) -> 30.43 | T114: 30.43
C115: -110 | D115: =IF(RTD("cqg.rtd",,"StudyData", $D$4, "Bar",, "Close",$E$4,C115,"All",,,,"T")="","",RTD("cqg.rtd",,"StudyData", $D$4, "Bar",, "Close",$E$4,C115,"All",,,,"T")*100) -> 29.42 | H115: 29.42 | O115: -110 | P115: =IF(RTD("cqg.rtd",,"StudyData", $P$4, "Bar",, "Close",$Q$4,O115,"All",,,,"T")="","",RTD("cqg.rtd",,"StudyData", $P$4, "Bar",, "Close",$Q$4,O115,"All",,,,"T")*100) -> 30.55 | T115: 30.55
C116: -111 | D116: =IF(RTD("cqg.rtd",,"StudyData", $D$4, "Bar",, "Close",$E$4,C116,"All",,,,"T")="","",RTD("cqg.rtd",,"StudyData", $D$4, "Bar",, "Close",$E$4,C116,"All",,,,"T")*100) -> 28.28 | H116: 28.28 | O116: -111 | P116: =IF(RTD("cqg.rtd",,"StudyData", $P$4, "Bar",, "Close",$Q$4,O116,"All",,,,"T")="","",RTD("cqg.rtd",,"StudyData", $P$4, "Bar",, "Close",$Q$4,O116,"All",,,,"T")*100) -> 29.18 | T116: 29.18
C117: -112 | D117: =IF(RTD("cqg.rtd",,"StudyData", $D$4, "Bar",, "Close",$E$4,C117,"All",,,,"T")="","",RTD("cqg.rtd",,"StudyData", $D$4, "Bar",, "Close",$E$4,C117,"All",,,,"T")*100) -> 28.07 | H117: 28.07 | O117: -112 | P117: =IF(RTD("cqg.rtd",,"StudyData", $P$4, "Bar",, "Close",$Q$4,O117,"All",,,,"T")="","",RTD("cqg.rtd",,"StudyData", $P$4, "Bar",, "Close",$Q$4,O117,"All",,,,"T")*100) -> 28.5 | T117: 28.5
C118: -113 | D118: =IF(RTD("cqg.rtd",,"StudyData", $D$4, "Bar",, "Close",$E$4,C118,"All",,,,"T")="","",RTD("cqg.rtd",,"StudyData", $D$4, "Bar",, "Close",$E$4,C118,"All",,,,"T")*100) -> 27.55 | H118: 27.55 | O118: -113 | P118: =IF(RTD("cqg.rtd",,"StudyData", $P$4, "Bar",, "Close",$Q$4,O118,"All",,,,"T")="","",RTD("cqg.rtd",,"StudyData", $P$4, "Bar",, "Close",$Q$4,O118,"All",,,,"T")*100) -> 29.24 | T118: 29.24
C119: -114 | D119: =IF(RTD("cqg.rtd",,"StudyData", $D$4, "Bar",, "Close",$E$4,C119,"All",,,,"T")="","",RTD("cqg.rtd",,"StudyData", $D$4, "Bar",, "Close",$E$4,C119,"All",,,,"T")*100) -> 29.66 | H119: 29.66 | O119: -114 | P119: =IF(RTD("cqg.rtd",,"StudyData", $P$4, "Bar",, "Close",$Q$4,O119,"All",,,,"T")="","",RTD("cqg.rtd",,"StudyData", $P$4, "Bar",, "Close",$Q$4,O119,"All",,,,"T")*100) -> 29.88 | T119: 29.88
C120: -115 | D120: =IF(RTD("cqg.rtd",,"StudyData", $D$4, "Bar",, "Close",$E$4,C120,"All",,,,"T")="","",RTD("cqg.rtd",,"StudyData", $D$4, "Bar",, "Close",$E$4,C120,"All",,,,"T")*100) -> 29.82 | H120: 29.82 | O120: -115 | P120: =IF(RTD("cqg.rtd",,"StudyData", $P$4, "Bar",, "Close",$Q$4,O120,"All",,,,"T")="","",RTD("cqg.rtd",,"StudyData", $P$4, "Bar",, "Close",$Q$4,O120,"All",,,,"T")*100) -> 33.04 | T120: 33.04
C121: -116 | D121: =IF(RTD("cqg.rtd",,"StudyData", $D$4, "Bar",, "Close",$E$4,C121,"All",,,,"T")="","",RTD("cqg.rtd",,"StudyData", $D$4, "Bar",, "Close",$E$4,C121,"All",,,,"T")*100) -> 30.6 | H121: 30.6 | O121: -116 | P121: =IF(RTD("cqg.rtd",,"StudyData", $P$4, "Bar",, "Close",$Q$4,O121,"All",,,,"T")="","",RTD("cqg.rtd",,"StudyData", $P$4, "Bar",, "Close",$Q$4,O121,"All",,,,"T")*100) -> 31.24 | T121: 31.24
C122: -117 | D122: =IF(RTD("cqg.rtd",,"StudyData", $D$4, "Bar",, "Close",$E$4,C122,"All",,,,"T")="","",RTD("cqg.rtd",,"StudyData", $D$4, "Bar",, "Close",$E$4,C122,"All",,,,"T")*100) -> 32.62 | H122: 32.62 | O122: -117 | P122: =IF(RTD("cqg.rtd",,"StudyData", $P$4, "Bar",, "Close",$Q$4,O122,"All",,,,"T")="","",RTD("cqg.rtd",,"StudyData", $P$4, "Bar",, "Close",$Q$4,O122,"All",,,,"T")*100) -> 31.75 | T122: 31.75
C123: -118 | D123: =IF(RTD("cqg.rtd",,"StudyData", $D$4, "Bar",, "Close",$E$4,C123,"All",,,,"T")="","",RTD("cqg.rtd",,"StudyData", $D$4, "Bar",, "Close",$E$4,C123,"All",,,,"T")*100) -> 27.54 | H123: 27.54 | O123: -118 | P123: =IF(RTD("cqg.rtd",,"StudyData", $P$4, "Bar",, "Close",$Q$4,O123,"All",,,,"T")="","",RTD("cqg.rtd",,"StudyData", $P$4, "Bar",, "Close",$Q$4,O123,"All",,,,"T")*100) -> 33.52 | T123: 33.52
C124: -119 | D124: =IF(RTD("cqg.rtd",,"StudyData", $D$4, "Bar",, "Close",$E$4,C124,"All",,,,"T")="","",RTD("cqg.rtd",,"StudyData", $D$4, "Bar",, "Close",$E$4,C124,"All",,,,"T")*100) -> 29.79 | H124: 29.79 | O124: -119 | P124: =IF(RTD("cqg.rtd",,"StudyData", $P$4, "Bar",, "Close",$Q$4,O124,"All",,,,"T")="","",RTD("cqg.rtd",,"StudyData", $P$4, "Bar",, "Close",$Q$4,O124,"All",,,,"T")*100) -> 31.02 | T124: 31.02
C125: -120 | D125: =IF(RTD("cqg.rtd",,"StudyData", $D$4, "Bar",, "Close",$E$4,C125,"All",,,,"T")="","",RTD("cqg.rtd",,"StudyData", $D$4, "Bar",, "Close",$E$4,C125,"All",,,,"T")*100) -> 25.66 | H125: 25.66 | O125: -120 | P125: =IF(RTD("cqg.rtd",,"StudyData", $P$4, "Bar",, "Close",$Q$4,O125,"All",,,,"T")="","",RTD("cqg.rtd",,"StudyData", $P$4, "Bar",, "Close",$Q$4,O125,"All",,,,"T")*100) -> 25.62 | T125: 25.62
C126: -121 | D126: =IF(RTD("cqg.rtd",,"StudyData", $D$4, "Bar",, "Close",$E$4,C126,"All",,,,"T")="","",RTD("cqg.rtd",,"StudyData", $D$4, "Bar",, "Close",$E$4,C126,"All",,,,"T")*100) -> 24.51 | H126: 24.51 | O126: -121 | P126: =IF(RTD("cqg.rtd",,"StudyData", $P$4, "Bar",, "Close",$Q$4,O126,"All",,,,"T")="","",RTD("cqg.rtd",,"StudyData", $P$4, "Bar",, "Close",$Q$4,O126,"All",,,,"T")*100) -> 25.06 | T126: 25.06
C127: -122 | D127: =IF(RTD("cqg.rtd",,"StudyData", $D$4, "Bar",, "Close",$E$4,C127,"All",,,,"T")="","",RTD("cqg.rtd",,"StudyData", $D$4, "Bar",, "Close",$E$4,C127,"All",,,,"T")*100) -> 25.05 | H127: 25.05 | O127: -122 | P127: =IF(RTD("cqg.rtd",,"StudyData", $P$4, "Bar",, "Close",$Q$4,O127,"All",,,,"T")="","",RTD("cqg.rtd",,"StudyData", $P$4, "Bar",, "Close",$Q$4,O127,"All",,,,"T")*100) -> 23.19 | T127: 23.19
C128: -123 | D128: =IF(RTD("cqg.rtd",,"StudyData", $D$4, "Bar",, "Close",$E$4,C128,"All",,,,"T")="","",RTD("cqg.rtd",,"StudyData", $D$4, "Bar",, "Close",$E$4,C128,"All",,,,"T")*100) -> 24.44 | H128: 24.44 | O128: -123 | P128: =IF(RTD("cqg.rtd",,"StudyData", $P$4, "Bar",, "Close",$Q$4,O128,"All",,,,"T")="","",RTD("cqg.rtd",,"StudyData", $P$4, "Bar",, "Close",$Q$4,O128,"All",,,,"T")*100) -> 24.47 | T128: 24.47
C129: -124 | D129: =IF(RTD("cqg.rtd",,"StudyData", $D$4, "Bar",, "Close",$E$4,C129,"All",,,,"T")="","",RTD("cqg.rtd",,"StudyData", $D$4, "Bar",, "Close",$E$4,C129,"All",,,,"T")*100) -> 23.1 | H129: 23.1 | O129: -124 | P129: =IF(RTD("cqg.rtd",,"StudyData", $P$4, "Bar",, "Close",$Q$4,O129,"All",,,,"T")="","",RTD("cqg.rtd",,"StudyData", $P$4, "Bar",, "Close",$Q$4,O129,"All",,,,"T")*100) -> 22.86 | T129: 22.86
C130: -125 | D130: =IF(RTD("cqg.rtd",,"StudyData", $D$4, "Bar",, "Close",$E$4,C130,"All",,,,"T")="","",RTD("cqg.rtd",,"StudyData", $D$4, "Bar",, "Close",$E$4,C130,"All",,,,"T")*100) -> 24.14 | H130: 24.14 | O130: -125 | P130: =IF(RTD("cqg.rtd",,"StudyData", $P$4, "Bar",, "Close",$Q$4,O130,"All",,,,"T")="","",RTD("cqg.rtd",,"StudyData", $P$4, "Bar",, "Close",$Q$4,O130,"All",,,,"T")*100) -> 22.56 | T130: 22.56
C131: -126 | D131: =IF(RTD("cqg.rtd",,"StudyData", $D$4, "Bar",, "Close",$E$4,C131,"All",,,,"T")="","",RTD("cqg.rtd",,"StudyData", $D$4, "Bar",, "Close",$E$4,C131,"All",,,,"T")*100) -> 23.44 | H131: 23.44 | O131: -126 | P131: =IF(RTD("cqg.rtd",,"StudyData", $P$4, "Bar",, "Close",$Q$4,O131,"All",,,,"T")="","",RTD("cqg.rtd",,"StudyData", $P$4, "Bar",, "Close",$Q$4,O131,"All",,,,"T")*100) -> 24.27 | T131: 24.27
C132: -127 | D132: =IF(RTD("cqg.rtd",,"StudyData", $D$4, "Bar",, "Close",$E$4,C132,"All",,,,"T")="","",RTD("cqg.rtd",,"StudyData", $D$4, "Bar",, "Close",$E$4,C132,"All",,,,"T")*100) -> 24.47 | H132: 24.47 | O132: -127 | P132: =IF(RTD("cqg.rtd",,"StudyData", $P$4, "Bar",, "Close",$Q$4,O132,"All",,,,"T")="","",RTD("cqg.rtd",,"StudyData", $P$4, "Bar",, "Close",$Q$4,O132,"All",,,,"T")*100) -> 24.95 | T132: 24.95
C133: -128 | D133: =IF(RTD("cqg.rtd",,"StudyData", $D$4, "Bar",, "Close",$E$4,C133,"All",,,,"T")="","",RTD("cqg.rtd",,"StudyData", $D$4, "Bar",, "Close",$E$4,C133,"All",,,,"T")*100) -> 25.72 | H133: 25.72 | O133: -128 | P133: =IF(RTD("cqg.rtd",,"StudyData", $P$4, "Bar",, "Close",$Q$4,O133,"All",,,,"T")="","",RTD("cqg.rtd",,"StudyData", $P$4, "Bar",, "Close",$Q$4,O133,"All",,,,"T")*100) -> 24.18 | T133: 24.18
C134: -129 | D134: =IF(RTD("cqg.rtd",,"StudyData", $D$4, "Bar",, "Close",$E$4,C134,"All",,,,"T")="","",RTD("cqg.rtd",,"StudyData", $D$4, "Bar",, "Close",$E$4,C134,"All",,,,"T")*100) -> 25.85 | H134: =D134 -> 25.85 | O134: -129 | P134: =IF(RTD("cqg.rtd",,"StudyData", $P$4, "Bar",, "Close",$Q$4,O134,"All",,,,"T")="","",RTD("cqg.rtd",,"StudyData", $P$4, "Bar",, "Close",$Q$4,O134,"All",,,,"T")*100) -> 24.73 | T134: =P134 -> 24.73
C135: =C134-1 -> -130 | D135: =IF(RTD("cqg.rtd",,"StudyData", $D$4, "Bar",, "Close",$E$4,C135,"All",,,,"T")="","",RTD("cqg.rtd",,"StudyData", $D$4, "Bar",, "Close",$E$4,C135,"All",,,,"T")*100) -> 24.43 | H135: 24.43 | O135: =O134-1 -> -130 | P135: =IF(RTD("cqg.rtd",,"StudyData", $P$4, "Bar",, "Close",$Q$4,O135,"All",,,,"T")="","",RTD("cqg.rtd",,"StudyData", $P$4, "Bar",, "Close",$Q$4,O135,"All",,,,"T")*100) -> 25.34 | T135: 25.34
C136: -131 | D136: =IF(RTD("cqg.rtd",,"StudyData", $D$4, "Bar",, "Close",$E$4,C136,"All",,,,"T")="","",RTD("cqg.rtd",,"StudyData", $D$4, "Bar",, "Close",$E$4,C136,"All",,,,"T")*100) -> 26.25 | H136: 26.25 | O136: -131 | P136: =IF(RTD("cqg.rtd",,"StudyData", $P$4, "Bar",, "Close",$Q$4,O136,"All",,,,"T")="","",RTD("cqg.rtd",,"StudyData", $P$4, "Bar",, "Close",$Q$4,O136,"All",,,,"T")*100) -> 24.63 | T136: 24.63
C137: -132 | D137: =IF(RTD("cqg.rtd",,"StudyData", $D$4, "Bar",, "Close",$E$4,C137,"All",,,,"T")="","",RTD("cqg.rtd",,"StudyData", $D$4, "Bar",, "Close",$E$4,C137,"All",,,,"T")*100) -> 25.94 | H137: 25.94 | O137: -132 | P137: =IF(RTD("cqg.rtd",,"StudyData", $P$4, "Bar",, "Close",$Q$4,O137,"All",,,,"T")="","",RTD("cqg.rtd",,"StudyData", $P$4, "Bar",, "Close",$Q$4,O137,"All",,,,"T")*100) -> 26.78 | T137: 26.78
C138: -133 | D138: =IF(RTD("cqg.rtd",,"StudyData", $D$4, "Bar",, "Close",$E$4,C138,"All",,,,"T")="","",RTD("cqg.rtd",,"StudyData", $D$4, "Bar",, "Close",$E$4,C138,"All",,,,"T")*100) -> 27.71 | H138: 27.71 | O138: -133 | P138: =IF(RTD("cqg.rtd",,"StudyData", $P$4, "Bar",, "Close",$Q$4,O138,"All",,,,"T")="","",RTD("cqg.rtd",,"StudyData", $P$4, "Bar",, "Close",$Q$4,O138,"All",,,,"T")*100) -> 26.57 | T138: 26.57
C139: -134 | D139: =IF(RTD("cqg.rtd",,"StudyData", $D$4, "Bar",, "Close",$E$4,C139,"All",,,,"T")="","",RTD("cqg.rtd",,"StudyData", $D$4, "Bar",, "Close",$E$4,C139,"All",,,,"T")*100) -> 27.11 | H139: 27.11 | O139: -134 | P139: =IF(RTD("cqg.rtd",,"StudyData", $P$4, "Bar",, "Close",$Q$4,O139,"All",,,,"T")="","",RTD("cqg.rtd",,"StudyData", $P$4, "Bar",, "Close",$Q$4,O139,"All",,,,"T")*100) -> 26.78 | T139: 26.78
C140: -135 | D140: =IF(RTD("cqg.rtd",,"StudyData", $D$4, "Bar",, "Close",$E$4,C140,"All",,,,"T")="","",RTD("cqg.rtd",,"StudyData", $D$4, "Bar",, "Close",$E$4,C140,"All",,,,"T")*100) -> 26.02 | H140: 26.02 | O140: -135 | P140: =IF(RTD("cqg.rtd",,"StudyData", $P$4, "Bar",, "Close",$Q$4,O140,"All",,,,"T")="","",RTD("cqg.rtd",,"StudyData", $P$4, "Bar",, "Close",$Q$4,O140,"All",,,,"T")*100) -> 25.5 | T140: 25.5
C141: -136 | D141: =IF(RTD("cqg.rtd",,"StudyData", $D$4, "Bar",, "Close",$E$4,C141,"All",,,,"T")="","",RTD("cqg.rtd",,"StudyData", $D$4, "Bar",, "Close",$E$4,C141,"All",,,,"T")*100) -> 26.11 | H141: 26.11 | O141: -136 | P141: =IF(RTD("cqg.rtd",,"StudyData", $P$4, "Bar",, "Close",$Q$4,O141,"All",,,,"T")="","",RTD("cqg.rtd",,"StudyData", $P$4, "Bar",, "Close",$Q$4,O141,"All",,,,"T")*100) -> 25.06 | T141: 25.06
C142: -137 | D142: =IF(RTD("cqg.rtd",,"StudyData", $D$4, "Bar",, "Close",$E$4,C142,"All",,,,"T")="","",RTD("cqg.rtd",,"StudyData", $D$4, "Bar",, "Close",$E$4,C142,"All",,,,"T")*100) -> 26.81 | H142: 26.81 | O142: -137 | P142: =IF(RTD("cqg.rtd",,"StudyData", $P$4, "Bar",, "Close",$Q$4,O142,"All",,,,"T")="","",RTD("cqg.rtd",,"StudyData", $P$4, "Bar",, "Close",$Q$4,O142,"All",,,,"T")*100) -> 26.97 | T142: 26.97
C143: -138 | D143: =IF(RTD("cqg.rtd",,"StudyData", $D$4, "Bar",, "Close",$E$4,C143,"All",,,,"T")="","",RTD("cqg.rtd",,"StudyData", $D$4, "Bar",, "Close",$E$4,C143,"All",,,,"T")*100) -> 26.92 | H143: 26.92 | O143: -138 | P143: =IF(RTD("cqg.rtd",,"StudyData", $P$4, "Bar",, "Close",$Q$4,O143,"All",,,,"T")="","",RTD("cqg.rtd",,"StudyData", $P$4, "Bar",, "Close",$Q$4,O143,"All",,,,"T")*100) -> 28.26 | T143: 28.26
C144: -139 | D144: =IF(RTD("cqg.rtd",,"StudyData", $D$4, "Bar",, "Close",$E$4,C144,"All",,,,"T")="","",RTD("cqg.rtd",,"StudyData", $D$4, "Bar",, "Close",$E$4,C144,"All",,,,"T")*100) -> 27.96 | H144: 27.96 | O144: -139 | P144: =IF(RTD("cqg.rtd",,"StudyData", $P$4, "Bar",, "Close",$Q$4,O144,"All",,,,"T")="","",RTD("cqg.rtd",,"StudyData", $P$4, "Bar",, "Close",$Q$4,O144,"All",,,,"T")*100) -> 28.14 | T144: 28.14
C145: -140 | D145: =IF(RTD("cqg.rtd",,"StudyData", $D$4, "Bar",, "Close",$E$4,C145,"All",,,,"T")="","",RTD("cqg.rtd",,"StudyData", $D$4, "Bar",, "Close",$E$4,C145,"All",,,,"T")*100) -> 26.67 | H145: 26.67 | O145: -140 | P145: =IF(RTD("cqg.rtd",,"StudyData", $P$4, "Bar",, "Close",$Q$4,O145,"All",,,,"T")="","",RTD("cqg.rtd",,"StudyData", $P$4, "Bar",, "Close",$Q$4,O145,"All",,,,"T")*100) -> 28.4 | T145: 28.4
C146: -141 | D146: =IF(RTD("cqg.rtd",,"StudyData", $D$4, "Bar",, "Close",$E$4,C146,"All",,,,"T")="","",RTD("cqg.rtd",,"StudyData", $D$4, "Bar",, "Close",$E$4,C146,"All",,,,"T")*100) -> 27.83 | H146: 27.83 | O146: -141 | P146: =IF(RTD("cqg.rtd",,"StudyData", $P$4, "Bar",, "Close",$Q$4,O146,"All",,,,"T")="","",RTD("cqg.rtd",,"StudyData", $P$4, "Bar",, "Close",$Q$4,O146,"All",,,,"T")*100) -> 27.44 | T146: 27.44
C147: -142 | D147: =IF(RTD("cqg.rtd",,"StudyData", $D$4, "Bar",, "Close",$E$4,C147,"All",,,,"T")="","",RTD("cqg.rtd",,"StudyData", $D$4, "Bar",, "Close",$E$4,C147,"All",,,,"T")*100) -> 27.77 | H147: 27.77 | O147: -142 | P147: =IF(RTD("cqg.rtd",,"StudyData", $P$4, "Bar",, "Close",$Q$4,O147,"All",,,,"T")="","",RTD("cqg.rtd",,"StudyData", $P$4, "Bar",, "Close",$Q$4,O147,"All",,,,"T")*100) -> 28.99 | T147: 28.99
C148: -143 | D148: =IF(RTD("cqg.rtd",,"StudyData", $D$4, "Bar",, "Close",$E$4,C148,"All",,,,"T")="","",RTD("cqg.rtd",,"StudyData", $D$4, "Bar",, "Close",$E$4,C148,"All",,,,"T")*100) -> 31.49 | H148: 31.49 | O148: -143 | P148: =IF(RTD("cqg.rtd",,"StudyData", $P$4, "Bar",, "Close",$Q$4,O148,"All",,,,"T")="","",RTD("cqg.rtd",,"StudyData", $P$4, "Bar",, "Close",$Q$4,O148,"All",,,,"T")*100) -> 25.85 | T148: 25.85
C149: -144 | D149: =IF(RTD("cqg.rtd",,"StudyData", $D$4, "Bar",, "Close",$E$4,C149,"All",,,,"T")="","",RTD("cqg.rtd",,"StudyData", $D$4, "Bar",, "Close",$E$4,C149,"All",,,,"T")*100) -> 29.34 | H149: 29.34 | O149: -144 | P149: =IF(RTD("cqg.rtd",,"StudyData", $P$4, "Bar",, "Close",$Q$4,O149,"All",,,,"T")="","",RTD("cqg.rtd",,"StudyData", $P$4, "Bar",, "Close",$Q$4,O149,"All",,,,"T")*100) -> 29.41 | T149: 29.41
C150: -145 | D150: =IF(RTD("cqg.rtd",,"StudyData", $D$4, "Bar",, "Close",$E$4,C150,"All",,,,"T")="","",RTD("cqg.rtd",,"StudyData", $D$4, "Bar",, "Close",$E$4,C150,"All",,,,"T")*100) -> 28.77 | H150: 28.77 | O150: -145 | P150: =IF(RTD("cqg.rtd",,"StudyData", $P$4, "Bar",, "Close",$Q$4,O150,"All",,,,"T")="","",RTD("cqg.rtd",,"StudyData", $P$4, "Bar",, "Close",$Q$4,O150,"All",,,,"T")*100) -> 28.95 | T150: 28.95
C151: -146 | D151: =IF(RTD("cqg.rtd",,"StudyData", $D$4, "Bar",, "Close",$E$4,C151,"All",,,,"T")="","",RTD("cqg.rtd",,"StudyData", $D$4, "Bar",, "Close",$E$4,C151,"All",,,,"T")*100) -> 28.78 | H151: 28.78 | O151: -146 | P151: =IF(RTD("cqg.rtd",,"StudyData", $P$4, "Bar",, "Close",$Q$4,O151,"All",,,,"T")="","",RTD("cqg.rtd",,"StudyData", $P$4, "Bar",, "Close",$Q$4,O151,"All",,,,"T")*100) -> 28.22 | T151: 28.22
C152: -147 | D152: =IF(RTD("cqg.rtd",,"StudyData", $D$4, "Bar",, "Close",$E$4,C152,"All",,,,"T")="","",RTD("cqg.rtd",,"StudyData", $D$4, "Bar",, "Close",$E$4,C152,"All",,,,"T")*100) -> 27.45 | H152: 27.45 | O152: -147 | P152: =IF(RTD("cqg.rtd",,"StudyData", $P$4, "Bar",, "Close",$Q$4,O152,"All",,,,"T")="","",RTD("cqg.rtd",,"StudyData", $P$4, "Bar",, "Close",$Q$4,O152,"All",,,,"T")*100) -> 28.35 | T152: 28.35
C153: -148 | D153: =IF(RTD("cqg.rtd",,"StudyData", $D$4, "Bar",, "Close",$E$4,C153,"All",,,,"T")="","",RTD("cqg.rtd",,"StudyData", $D$4, "Bar",, "Close",$E$4,C153,"All",,,,"T")*100) -> 28.19 | H153: 28.19 | O153: -148 | P153: =IF(RTD("cqg.rtd",,"StudyData", $P$4, "Bar",, "Close",$Q$4,O153,"All",,,,"T")="","",RTD("cqg.rtd",,"StudyData", $P$4, "Bar",, "Close",$Q$4,O153,"All",,,,"T")*100) -> 29.64 | T153: 29.64
C154: -149 | D154: =IF(RTD("cqg.rtd",,"StudyData", $D$4, "Bar",, "Close",$E$4,C154,"All",,,,"T")="","",RTD("cqg.rtd",,"StudyData", $D$4, "Bar",, "Close",$E$4,C154,"All",,,,"T")*100) -> 29.35 | H154: 29.35 | O154: -149 | P154: =IF(RTD("cqg.rtd",,"StudyData", $P$4, "Bar",, "Close",$Q$4,O154,"All",,,,"T")="","",RTD("cqg.rtd",,"StudyData", $P$4, "Bar",, "Close",$Q$4,O154,"All",,,,"T")*100) -> 27.58 | T154: 27.58
C155: -150 | D155: =IF(RTD("cqg.rtd",,"StudyData", $D$4, "Bar",, "Close",$E$4,C155,"All",,,,"T")="","",RTD("cqg.rtd",,"StudyData", $D$4, "Bar",, "Close",$E$4,C155,"All",,,,"T")*100) -> 28.68 | H155: 28.68 | O155: -150 | P155: =IF(RTD("cqg.rtd",,"StudyData", $P$4, "Bar",, "Close",$Q$4,O155,"All",,,,"T")="","",RTD("cqg.rtd",,"StudyData", $P$4, "Bar",, "Close",$Q$4,O155,"All",,,,"T")*100) -> 28.97 | T155: 28.97
C156: -151 | D156: =IF(RTD("cqg.rtd",,"StudyData", $D$4, "Bar",, "Close",$E$4,C156,"All",,,,"T")="","",RTD("cqg.rtd",,"StudyData", $D$4, "Bar",, "Close",$E$4,C156,"All",,,,"T")*100) -> 29.15 | H156: 29.15 | O156: -151 | P156: =IF(RTD("cqg.rtd",,"StudyData", $P$4, "Bar",, "Close",$Q$4,O156,"All",,,,"T")="","",RTD("cqg.rtd",,"StudyData", $P$4, "Bar",, "Close",$Q$4,O156,"All",,,,"T")*100) -> 28.45 | T156: 28.45
C157: -152 | D157: =IF(RTD("cqg.rtd",,"StudyData", $D$4, "Bar",, "Close",$E$4,C157,"All",,,,"T")="","",RTD("cqg.rtd",,"StudyData", $D$4, "Bar",, "Close",$E$4,C157,"All",,,,"T")*100) -> 28.89 | H157: 28.89 | O157: -152 | P157: =IF(RTD("cqg.rtd",,"StudyData", $P$4, "Bar",, "Close",$Q$4,O157,"All",,,,"T")="","",RTD("cqg.rtd",,"StudyData", $P$4, "Bar",, "Close",$Q$4,O157,"All",,,,"T")*100) -> 29.73 | T157: 29.73
C158: -153 | D158: =IF(RTD("cqg.rtd",,"StudyData", $D$4, "Bar",, "Close",$E$4,C158,"All",,,,"T")="","",RTD("cqg.rtd",,"StudyData", $D$4, "Bar",, "Close",$E$4,C158,"All",,,,"T")*100) -> 28.52 | H158: 28.52 | O158: -153 | P158: =IF(RTD("cqg.rtd",,"StudyData", $P$4, "Bar",, "Close",$Q$4,O158,"All",,,,"T")="","",RTD("cqg.rtd",,"StudyData", $P$4, "Bar",, "Close",$Q$4,O158,"All",,,,"T")*100) -> 30.84 | T158: 30.84
C159: -154 | D159: =IF(RTD("cqg.rtd",,"StudyData", $D$4, "Bar",, "Close",$E$4,C159,"All",,,,"T")="","",RTD("cqg.rtd",,"StudyData", $D$4, "Bar",, "Close",$E$4,C159,"All",,,,"T")*100) -> 28.89 | H159: 28.89 | O159: -154 | P159: =IF(RTD("cqg.rtd",,"StudyData", $P$4, "Bar",, "Close",$Q$4,O159,"All",,,,"T")="","",RTD("cqg.rtd",,"StudyData", $P$4, "Bar",, "Close",$Q$4,O159,"All",,,,"T")*100) -> 28.77 | T159: 28.77
C160: -155 | D160: =IF(RTD("cqg.rtd",,"StudyData", $D$4, "Bar",, "Close",$E$4,C160,"All",,,,"T")="","",RTD("cqg.rtd",,"StudyData", $D$4, "Bar",, "Close",$E$4,C160,"All",,,,"T")*100) -> 28.28 | H160: 28.28 | O160: -155 | P160: =IF(RTD("cqg.rtd",,"StudyData", $P$4, "Bar",, "Close",$Q$4,O160,"All",,,,"T")="","",RTD("cqg.rtd",,"StudyData", $P$4, "Bar",, "Close",$Q$4,O160,"All",,,,"T")*100) -> 29.3 | T160: 29.3
C161: -156 | D161: =IF(RTD("cqg.rtd",,"StudyData", $D$4, "Bar",, "Close",$E$4,C161,"All",,,,"T")="","",RTD("cqg.rtd",,"StudyData", $D$4, "Bar",, "Close",$E$4,C161,"All",,,,"T")*100) -> 28.21 | H161: 28.21 | O161: -156 | P161: =IF(RTD("cqg.rtd",,"StudyData", $P$4, "Bar",, "Close",$Q$4,O161,"All",,,,"T")="","",RTD("cqg.rtd",,"StudyData", $P$4, "Bar",, "Close",$Q$4,O161,"All",,,,"T")*100) -> 29 | T161: 29
C162: -157 | D162: =IF(RTD("cqg.rtd",,"StudyData", $D$4, "Bar",, "Close",$E$4,C162,"All",,,,"T")="","",RTD("cqg.rtd",,"StudyData", $D$4, "Bar",, "Close",$E$4,C162,"All",,,,"T")*100) -> 30.5 | H162: 30.5 | O162: -157 | P162: =IF(RTD("cqg.rtd",,"StudyData", $P$4, "Bar",, "Close",$Q$4,O162,"All",,,,"T")="","",RTD("cqg.rtd",,"StudyData", $P$4, "Bar",, "Close",$Q$4,O162,"All",,,,"T")*100) -> 29.18 | T162: 29.18
C163: -158 | D163: =IF(RTD("cqg.rtd",,"StudyData", $D$4, "Bar",, "Close",$E$4,C163,"All",,,,"T")="","",RTD("cqg.rtd",,"StudyData", $D$4, "Bar",, "Close",$E$4,C163,"All",,,,"T")*100) -> 29.81 | H163: 29.81 | O163: -158 | P163: =IF(RTD("cqg.rtd",,"StudyData", $P$4, "Bar",, "Close",$Q$4,O163,"All",,,,"T")="","",RTD("cqg.rtd",,"StudyData", $P$4, "Bar",, "Close",$Q$4,O163,"All",,,,"T")*100) -> 31.3 | T163: 31.3
C164: -159 | D164: =IF(RTD("cqg.rtd",,"StudyData", $D$4, "Bar",, "Close",$E$4,C164,"All",,,,"T")="","",RTD("cqg.rtd",,"StudyData", $D$4, "Bar",, "Close",$E$4,C164,"All",,,,"T")*100) -> 30.35 | H164: 30.35 | O164: -159 | P164: =IF(RTD("cqg.rtd",,"StudyData", $P$4, "Bar",, "Close",$Q$4,O164,"All",,,,"T")="","",RTD("cqg.rtd",,"StudyData", $P$4, "Bar",, "Close",$Q$4,O164,"All",,,,"T")*100) -> 29.61 | T164: 29.61
C165: -160 | D165: =IF(RTD("cqg.rtd",,"StudyData", $D$4, "Bar",, "Close",$E$4,C165,"All",,,,"T")="","",RTD("cqg.rtd",,"StudyData", $D$4, "Bar",, "Close",$E$4,C165,"All",,,,"T")*100) -> 29.86 | H165: 29.86 | O165: -160 | P165: =IF(RTD("cqg.rtd",,"StudyData", $P$4, "Bar",, "Close",$Q$4,O165,"All",,,,"T")="","",RTD("cqg.rtd",,"StudyData", $P$4, "Bar",, "Close",$Q$4,O165,"All",,,,"T")*100) -> 26.44 | T165: 26.44
C166: -161 | D166: =IF(RTD("cqg.rtd",,"StudyData", $D$4, "Bar",, "Close",$E$4,C166,"All",,,,"T")="","",RTD("cqg.rtd",,"StudyData", $D$4, "Bar",, "Close",$E$4,C166,"All",,,,"T")*100) -> 29.11 | H166: 29.11 | O166: -161 | P166: =IF(RTD("cqg.rtd",,"StudyData", $P$4, "Bar",, "Close",$Q$4,O166,"All",,,,"T")="","",RTD("cqg.rtd",,"StudyData", $P$4, "Bar",, "Close",$Q$4,O166,"All",,,,"T")*100) -> 28.13 | T166: 28.13
C167: -162 | D167: =IF(RTD("cqg.rtd",,"StudyData", $D$4, "Bar",, "Close",$E$4,C167,"All",,,,"T")="","",RTD("cqg.rtd",,"StudyData", $D$4, "Bar",, "Close",$E$4,C167,"All",,,,"T")*100) -> 30.31 | H167: 30.31 | O167: -162 | P167: =IF(RTD("cqg.rtd",,"StudyData", $P$4, "Bar",, "Close",$Q$4,O167,"All",,,,"T")="","",RTD("cqg.rtd",,"StudyData", $P$4, "Bar",, "Close",$Q$4,O167,"All",,,,"T")*100) -> 28.26 | T167: 28.26
C168: -163 | D168: =IF(RTD("cqg.rtd",,"StudyData", $D$4, "Bar",, "Close",$E$4,C168,"All",,,,"T")="","",RTD("cqg.rtd",,"StudyData", $D$4, "Bar",, "Close",$E$4,C168,"All",,,,"T")*100) -> 30.51 | H168: 30.51 | O168: -163 | P168: =IF(RTD("cqg.rtd",,"StudyData", $P$4, "Bar",, "Close",$Q$4,O168,"All",,,,"T")="","",RTD("cqg.rtd",,"StudyData", $P$4, "Bar",, "Close",$Q$4,O168,"All",,,,"T")*100) -> 29.6 | T168: 29.6
C169: -164 | D169: =IF(RTD("cqg.rtd",,"StudyData", $D$4, "Bar",, "Close",$E$4,C169,"All",,,,"T")="","",RTD("cqg.rtd",,"StudyData", $D$4, "Bar",, "Close",$E$4,C169,"All",,,,"T")*100) -> 28.69 | H169: 28.69 | O169: -164 | P169: =IF(RTD("cqg.rtd",,"StudyData", $P$4, "Bar",, "Close",$Q$4,O169,"All",,,,"T")="","",RTD("cqg.rtd",,"StudyData", $P$4, "Bar",, "Close",$Q$4,O169,"All",,,,"T")*100) -> 28.18 | T169: 28.18
C170: -165 | D170: =IF(RTD("cqg.rtd",,"StudyData", $D$4, "Bar",, "Close",$E$4,C170,"All",,,,"T")="","",RTD("cqg.rtd",,"StudyData", $D$4, "Bar",, "Close",$E$4,C170,"All",,,,"T")*100) -> 28.02 | H170: 28.02 | O170: -165 | P170: =IF(RTD("cqg.rtd",,"StudyData", $P$4, "Bar",, "Close",$Q$4,O170,"All",,,,"T")="","",RTD("cqg.rtd",,"StudyData", $P$4, "Bar",, "Close",$Q$4,O170,"All",,,,"T")*100) -> 27.36 | T170: 27.36
C171: -166 | D171: =IF(RTD("cqg.rtd",,"StudyData", $D$4, "Bar",, "Close",$E$4,C171,"All",,,,"T")="","",RTD("cqg.rtd",,"StudyData", $D$4, "Bar",, "Close",$E$4,C171,"All",,,,"T")*100) -> 27.44 | H171: 27.44 | O171: -166 | P171: =IF(RTD("cqg.rtd",,"StudyData", $P$4, "Bar",, "Close",$Q$4,O171,"All",,,,"T")="","",RTD("cqg.rtd",,"StudyData", $P$4, "Bar",, "Close",$Q$4,O171,"All",,,,"T")*100) -> 26.76 | T171: 26.76
C172: -167 | D172: =IF(RTD("cqg.rtd",,"StudyData", $D$4, "Bar",, "Close",$E$4,C172,"All",,,,"T")="","",RTD("cqg.rtd",,"StudyData", $D$4, "Bar",, "Close",$E$4,C172,"All",,,,"T")*100) -> 28.1 | H172: 28.1 | O172: -167 | P172: =IF(RTD("cqg.rtd",,"StudyData", $P$4, "Bar",, "Close",$Q$4,O172,"All",,,,"T")="","",RTD("cqg.rtd",,"StudyData", $P$4, "Bar",, "Close",$Q$4,O172,"All",,,,"T")*100) -> 26.76 | T172: 26.76
C173: -168 | D173: =IF(RTD("cqg.rtd",,"StudyData", $D$4, "Bar",, "Close",$E$4,C173,"All",,,,"T")="","",RTD("cqg.rtd",,"StudyData", $D$4, "Bar",, "Close",$E$4,C173,"All",,,,"T")*100) -> 28.46 | H173: 28.46 | O173: -168 | P173: =IF(RTD("cqg.rtd",,"StudyData", $P$4, "Bar",, "Close",$Q$4,O173,"All",,,,"T")="","",RTD("cqg.rtd",,"StudyData", $P$4, "Bar",, "Close",$Q$4,O173,"All",,,,"T")*100) -> 28.8 | T173: 28.8
C174: -169 | D174: =IF(RTD("cqg.rtd",,"StudyData", $D$4, "Bar",, "Close",$E$4,C174,"All",,,,"T")="","",RTD("cqg.rtd",,"StudyData", $D$4, "Bar",, "Close",$E$4,C174,"All",,,,"T")*100) -> 29.7 | H174: 29.7 | O174: -169 | P174: =IF(RTD("cqg.rtd",,"StudyData", $P$4, "Bar",, "Close",$Q$4,O174,"All",,,,"T")="","",RTD("cqg.rtd",,"StudyData", $P$4, "Bar",, "Close",$Q$4,O174,"All",,,,"T")*100) -> 28.05 | T174: 28.05
C175: -170 | D175: =IF(RTD("cqg.rtd",,"StudyData", $D$4, "Bar",, "Close",$E$4,C175,"All",,,,"T")="","",RTD("cqg.rtd",,"StudyData", $D$4, "Bar",, "Close",$E$4,C175,"All",,,,"T")*100) -> 28.54 | H175: 28.54 | O175: -170 | P175: =IF(RTD("cqg.rtd",,"StudyData", $P$4, "Bar",, "Close",$Q$4,O175,"All",,,,"T")="","",RTD("cqg.rtd",,"StudyData", $P$4, "Bar",, "Close",$Q$4,O175,"All",,,,"T")*100) -> 29.11 | T175: 29.11
C176: -171 | D176: =IF(RTD("cqg.rtd",,"StudyData", $D$4, "Bar",, "Close",$E$4,C176,"All",,,,"T")="","",RTD("cqg.rtd",,"StudyData", $D$4, "Bar",, "Close",$E$4,C176,"All",,,,"T")*100) -> 27.71 | H176: 27.71 | O176: -171 | P176: =IF(RTD("cqg.rtd",,"StudyData", $P$4, "Bar",, "Close",$Q$4,O176,"All",,,,"T")="","",RTD("cqg.rtd",,"StudyData", $P$4, "Bar",, "Close",$Q$4,O176,"All",,,,"T")*100) -> 27.51 | T176: 27.51
C177: -172 | D177: =IF(RTD("cqg.rtd",,"StudyData", $D$4, "Bar",, "Close",$E$4,C177,"All",,,,"T")="","",RTD("cqg.rtd",,"StudyData", $D$4, "Bar",, "Close",$E$4,C177,"All",,,,"T")*100) -> 28.34 | H177: 28.34 | O177: -172 | P177: =IF(RTD("cqg.rtd",,"StudyData", $P$4, "Bar",, "Close",$Q$4,O177,"All",,,,"T")="","",RTD("cqg.rtd",,"StudyData", $P$4, "Bar",, "Close",$Q$4,O177,"All",,,,"T")*100) -> 29.33 | T177: 29.33
C178: -173 | D178: =IF(RTD("cqg.rtd",,"StudyData", $D$4, "Bar",, "Close",$E$4,C178,"All",,,,"T")="","",RTD("cqg.rtd",,"StudyData", $D$4, "Bar",, "Close",$E$4,C178,"All",,,,"T")*100) -> 29.22 | H178: 29.22 | O178: -173 | P178: =IF(RTD("cqg.rtd",,"StudyData", $P$4, "Bar",, "Close",$Q$4,O178,"All",,,,"T")="","",RTD("cqg.rtd",,"StudyData", $P$4, "Bar",, "Close",$Q$4,O178,"All",,,,"T")*100) -> 30.16 | T178: 30.16
C179: -174 | D179: =IF(RTD("cqg.rtd",,"StudyData", $D$4, "Bar",, "Close",$E$4,C179,"All",,,,"T")="","",RTD("cqg.rtd",,"StudyData", $D$4, "Bar",, "Close",$E$4,C179,"All",,,,"T")*100) -> 30.08 | H179: 30.08 | O179: -174 | P179: =IF(RTD("cqg.rtd",,"StudyData", $P$4, "Bar",, "Close",$Q$4,O179,"All",,,,"T")="","",RTD("cqg.rtd",,"StudyData", $P$4, "Bar",, "Close",$Q$4,O179,"All",,,,"T")*100) -> 30.69 | T179: 30.69
C180: -175 | D180: =IF(RTD("cqg.rtd",,"StudyData", $D$4, "Bar",, "Close",$E$4,C180,"All",,,,"T")="","",RTD("cqg.rtd",,"StudyData", $D$4, "Bar",, "Close",$E$4,C180,"All",,,,"T")*100) -> 31.18 | H180: 31.18 | O180: -175 | P180: =IF(RTD("cqg.rtd",,"StudyData", $P$4, "Bar",, "Close",$Q$4,O180,"All",,,,"T")="","",RTD("cqg.rtd",,"StudyData", $P$4, "Bar",, "Close",$Q$4,O180,"All",,,,"T")*100) -> 29.04 | T180: 29.04
C181: -176 | D181: =IF(RTD("cqg.rtd",,"StudyData", $D$4, "Bar",, "Close",$E$4,C181,"All",,,,"T")="","",RTD("cqg.rtd",,"StudyData", $D$4, "Bar",, "Close",$E$4,C181,"All",,,,"T")*100) -> 31.88 | H181: 31.88 | O181: -176 | P181: =IF(RTD("cqg.rtd",,"StudyData", $P$4, "Bar",, "Close",$Q$4,O181,"All",,,,"T")="","",RTD("cqg.rtd",,"StudyData", $P$4, "Bar",, "Close",$Q$4,O181,"All",,,,"T")*100) -> 28.86 | T181: 28.86
C182: -177 | D182: =IF(RTD("cqg.rtd",,"StudyData", $D$4, "Bar",, "Close",$E$4,C182,"All",,,,"T")="","",RTD("cqg.rtd",,"StudyData", $D$4, "Bar",, "Close",$E$4,C182,"All",,,,"T")*100) -> 32.1 | H182: 32.1 | O182: -177 | P182: =IF(RTD("cqg.rtd",,"StudyData", $P$4, "Bar",, "Close",$Q$4,O182,"All",,,,"T")="","",RTD("cqg.rtd",,"StudyData", $P$4, "Bar",, "Close",$Q$4,O182,"All",,,,"T")*100) -> 30.27 | T182: 30.27
C183: -178 | D183: =IF(RTD("cqg.rtd",,"StudyData", $D$4, "Bar",, "Close",$E$4,C183,"All",,,,"T")="","",RTD("cqg.rtd",,"StudyData", $D$4, "Bar",, "Close",$E$4,C183,"All",,,,"T")*100) -> 30.41 | H183: 30.41 | O183: -178 | P183: =IF(RTD("cqg.rtd",,"StudyData", $P$4, "Bar",, "Close",$Q$4,O183,"All",,,,"T")="","",RTD("cqg.rtd",,"StudyData", $P$4, "Bar",, "Close",$Q$4,O183,"All",,,,"T")*100) -> 32.61 | T183: 32.61
C184: -179 | D184: =IF(RTD("cqg.rtd",,"StudyData", $D$4, "Bar",, "Close",$E$4,C184,"All",,,,"T")="","",RTD("cqg.rtd",,"StudyData", $D$4, "Bar",, "Close",$E$4,C184,"All",,,,"T")*100) -> 31.74 | H184: 31.74 | O184: -179 | P184: =IF(RTD("cqg.rtd",,"StudyData", $P$4, "Bar",, "Close",$Q$4,O184,"All",,,,"T")="","",RTD("cqg.rtd",,"StudyData", $P$4, "Bar",, "Close",$Q$4,O184,"All",,,,"T")*100) -> 30.22 | T184: 30.22
C185: -180 | D185: =IF(RTD("cqg.rtd",,"StudyData", $D$4, "Bar",, "Close",$E$4,C185,"All",,,,"T")="","",RTD("cqg.rtd",,"StudyData", $D$4, "Bar",, "Close",$E$4,C185,"All",,,,"T")*100) -> 33.03 | H185: 33.03 | O185: -180 | P185: =IF(RTD("cqg.rtd",,"StudyData", $P$4, "Bar",, "Close",$Q$4,O185,"All",,,,"T")="","",RTD("cqg.rtd",,"StudyData", $P$4, "Bar",, "Close",$Q$4,O185,"All",,,,"T")*100) -> 31.81 | T185: 31.81
C186: -181 | D186: =IF(RTD("cqg.rtd",,"StudyData", $D$4, "Bar",, "Close",$E$4,C186,"All",,,,"T")="","",RTD("cqg.rtd",,"StudyData", $D$4, "Bar",, "Close",$E$4,C186,"All",,,,"T")*100) -> 35.57 | H186: 35.57 | O186: -181 | P186: =IF(RTD("cqg.rtd",,"StudyData", $P$4, "Bar",, "Close",$Q$4,O186,"All",,,,"T")="","",RTD("cqg.rtd",,"StudyData", $P$4, "Bar",, "Close",$Q$4,O186,"All",,,,"T")*100) -> 32.37 | T186: 32.37
C187: -182 | D187: =IF(RTD("cqg.rtd",,"StudyData", $D$4, "Bar",, "Close",$E$4,C187,"All",,,,"T")="","",RTD("cqg.rtd",,"StudyData", $D$4, "Bar",, "Close",$E$4,C187,"All",,,,"T")*100) -> 37.95 | H187: 37.95 | O187: -182 | P187: =IF(RTD("cqg.rtd",,"StudyData", $P$4, "Bar",, "Close",$Q$4,O187,"All",,,,"T")="","",RTD("cqg.rtd",,"StudyData", $P$4, "Bar",, "Close",$Q$4,O187,"All",,,,"T")*100) -> 32.18 | T187: 32.18
C188: -183 | D188: =IF(RTD("cqg.rtd",,"StudyData", $D$4, "Bar",, "Close",$E$4,C188,"All",,,,"T")="","",RTD("cqg.rtd",,"StudyData", $D$4, "Bar",, "Close",$E$4,C188,"All",,,,"T")*100) -> 34.61 | H188: 34.61 | O188: -183 | P188: =IF(RTD("cqg.rtd",,"StudyData", $P$4, "Bar",, "Close",$Q$4,O188,"All",,,,"T")="","",RTD("cqg.rtd",,"StudyData", $P$4, "Bar",, "Close",$Q$4,O188,"All",,,,"T")*100) -> 33.65 | T188: 33.65
C189: -184 | D189: =IF(RTD("cqg.rtd",,"StudyData", $D$4, "Bar",, "Close",$E$4,C189,"All",,,,"T")="","",RTD("cqg.rtd",,"StudyData", $D$4, "Bar",, "Close",$E$4,C189,"All",,,,"T")*100) -> 38.17 | H189: 38.17 | O189: -184 | P189: =IF(RTD("cqg.rtd",,"StudyData", $P$4, "Bar",, "Close",$Q$4,O189,"All",,,,"T")="","",RTD("cqg.rtd",,"StudyData", $P$4, "Bar",, "Close",$Q$4,O189,"All",,,,"T")*100) -> 33.69 | T189: 33.69
C190: -185 | D190: =IF(RTD("cqg.rtd",,"StudyData", $D$4, "Bar",, "Close",$E$4,C190,"All",,,,"T")="","",RTD("cqg.rtd",,"StudyData", $D$4, "Bar",, "Close",$E$4,C190,"All",,,,"T")*100) -> 43.8 | H190: 43.8 | O190: -185 | P190: =IF(RTD("cqg.rtd",,"StudyData", $P$4, "Bar",, "Close",$Q$4,O190,"All",,,,"T")="","",RTD("cqg.rtd",,"StudyData", $P$4, "Bar",, "Close",$Q$4,O190,"All",,,,"T")*100) -> 37.69 | T190: 37.69
C191: -186 | D191: =IF(RTD("cqg.rtd",,"StudyData", $D$4, "Bar",, "Close",$E$4,C191,"All",,,,"T")="","",RTD("cqg.rtd",,"StudyData", $D$4, "Bar",, "Close",$E$4,C191,"All",,,,"T")*100) -> 49.6 | H191: 49.6 | O191: -186 | P191: =IF(RTD("cqg.rtd",,"StudyData", $P$4, "Bar",, "Close",$Q$4,O191,"All",,,,"T")="","",RTD("cqg.rtd",,"StudyData", $P$4, "Bar",, "Close",$Q$4,O191,"All",,,,"T")*100) -> 50.07 | T191: 50.07
C192: -187 | D192: =IF(RTD("cqg.rtd",,"StudyData", $D$4, "Bar",, "Close",$E$4,C192,"All",,,,"T")="","",RTD("cqg.rtd",,"StudyData", $D$4, "Bar",, "Close",$E$4,C192,"All",,,,"T")*100) -> 46.94 | H192: 46.94 | O192: -187 | P192: =IF(RTD("cqg.rtd",,"StudyData", $P$4, "Bar",, "Close",$Q$4,O192,"All",,,,"T")="","",RTD("cqg.rtd",,"StudyData", $P$4, "Bar",, "Close",$Q$4,O192,"All",,,,"T")*100) -> 46.8 | T192: 46.8
C193: -188 | D193: =IF(RTD("cqg.rtd",,"StudyData", $D$4, "Bar",, "Close",$E$4,C193,"All",,,,"T")="","",RTD("cqg.rtd",,"StudyData", $D$4, "Bar",, "Close",$E$4,C193,"All",,,,"T")*100) -> 47.14 | H193: 47.14 | O193: -188 | P193: =IF(RTD("cqg.rtd",,"StudyData", $P$4, "Bar",, "Close",$Q$4,O193,"All",,,,"T")="","",RTD("cqg.rtd",,"StudyData", $P$4, "Bar",, "Close",$Q$4,O193,"All",,,,"T")*100) -> 48.17 | T193: 48.17
C194: -189 | D194: =IF(RTD("cqg.rtd",,"StudyData", $D$4, "Bar",, "Close",$E$4,C194,"All",,,,"T")="","",RTD("cqg.rtd",,"StudyData", $D$4, "Bar",, "Close",$E$4,C194,"All",,,,"T")*100) -> 43.11 | H194: 43.11 | O194: -189 | P194: =IF(RTD("cqg.rtd",,"StudyData", $P$4, "Bar",, "Close",$Q$4,O194,"All",,,,"T")="","",RTD("cqg.rtd",,"StudyData", $P$4, "Bar",, "Close",$Q$4,O194,"All",,,,"T")*100) -> 38.21 | T194: 38.21
C195: -190 | D195: =IF(RTD("cqg.rtd",,"StudyData", $D$4, "Bar",, "Close",$E$4,C195,"All",,,,"T")="","",RTD("cqg.rtd",,"StudyData", $D$4, "Bar",, "Close",$E$4,C195,"All",,,,"T")*100) -> 41.8 | H195: 41.8 | O195: -190 | P195: =IF(RTD("cqg.rtd",,"StudyData", $P$4, "Bar",, "Close",$Q$4,O195,"All",,,,"T")="","",RTD("cqg.rtd",,"StudyData", $P$4, "Bar",, "Close",$Q$4,O195,"All",,,,"T")*100) -> 37.97 | T195: 37.97
C196: -191 | D196: =IF(RTD("cqg.rtd",,"StudyData", $D$4, "Bar",, "Close",$E$4,C196,"All",,,,"T")="","",RTD("cqg.rtd",,"StudyData", $D$4, "Bar",, "Close",$E$4,C196,"All",,,,"T")*100) -> 40.95 | H196: 40.95 | O196: -191 | P196: =IF(RTD("cqg.rtd",,"StudyData", $P$4, "Bar",, "Close",$Q$4,O196,"All",,,,"T")="","",RTD("cqg.rtd",,"StudyData", $P$4, "Bar",, "Close",$Q$4,O196,"All",,,,"T")*100) -> 39.55 | T196: 39.55
C197: -192 | D197: =IF(RTD("cqg.rtd",,"StudyData", $D$4, "Bar",, "Close",$E$4,C197,"All",,,,"T")="","",RTD("cqg.rtd",,"StudyData", $D$4, "Bar",, "Close",$E$4,C197,"All",,,,"T")*100) -> 43.68 | H197: 43.68 | O197: -192 | P197: =IF(RTD("cqg.rtd",,"StudyData", $P$4, "Bar",, "Close",$Q$4,O197,"All",,,,"T")="","",RTD("cqg.rtd",,"StudyData", $P$4, "Bar",, "Close",$Q$4,O197,"All",,,,"T")*100) -> 38.36 | T197: 38.36
C198: -193 | D198: =IF(RTD("cqg.rtd",,"StudyData", $D$4, "Bar",, "Close",$E$4,C198,"All",,,,"T")="","",RTD("cqg.rtd",,"StudyData", $D$4, "Bar",, "Close",$E$4,C198,"All",,,,"T")*100) -> 46.61 | H198: =D198 -> 46.61 | O198: -193 | P198: =IF(RTD("cqg.rtd",,"StudyData", $P$4, "Bar",, "Close",$Q$4,O198,"All",,,,"T")="","",RTD("cqg.rtd",,"StudyData", $P$4, "Bar",, "Close",$Q$4,O198,"All",,,,"T")*100) -> 40.13 | T198: =P198 -> 40.13
C199: =C198-1 -> -194 | D199: =IF(RTD("cqg.rtd",,"StudyData", $D$4, "Bar",, "Close",$E$4,C199,"All",,,,"T")="","",RTD("cqg.rtd",,"StudyData", $D$4, "Bar",, "Close",$E$4,C199,"All",,,,"T")*100) -> 45.52 | H199: 45.52 | O199: =O198-1 -> -194 | P199: =IF(RTD("cqg.rtd",,"StudyData", $P$4, "Bar",, "Close",$Q$4,O199,"All",,,,"T")="","",RTD("cqg.rtd",,"StudyData", $P$4, "Bar",, "Close",$Q$4,O199,"All",,,,"T")*100) -> 40.98 | T199: 40.98
C200: -195 | D200: =IF(RTD("cqg.rtd",,"StudyData", $D$4, "Bar",, "Close",$E$4,C200,"All",,,,"T")="","",RTD("cqg.rtd",,"StudyData", $D$4, "Bar",, "Close",$E$4,C200,"All",,,,"T")*100) -> 41.07 | H200: 41.07 | O200: -195 | P200: =IF(RTD("cqg.rtd",,"StudyData", $P$4, "Bar",, "Close",$Q$4,O200,"All",,,,"T")="","",RTD("cqg.rtd",,"StudyData", $P$4, "Bar",, "Close",$Q$4,O200,"All",,,,"T")*100) -> 41.32 | T200: 41.32
... 4 more rows
